Workbook

Sheet Table 1
A1: TABLE 1: | C1: Registrations* and timeliness** reported by registries as at 30/06/10
L2: 2008 Numbers | N2: 2008 | O2: Population
A3: Registry | C3: 1999 | D3: 2000 | E3: 2001 | F3: 2002 | G3: 2003 | H3: 2004 | I3: 2005 | J3: 2006 | K3: 2007 | L3: Initial £ | M3: ONS ready £ | N3: % ONS ready*** | O3: 2008 (for new areas) ^
A4: England (total) | C4: =SUM(C5:C12) -> 228026 | D4: =SUM(D5:D12) -> 229814 | E4: 233493 | F4: 232639 | G4: 237426 | H4: 242594 | I4: 246887 | J4: 251946 | K4: 253348 | L4: 1959 | M4: 255098 | N4: =M4/((I4+J4+K4)/3)*100 -> 101.7433304 | O4: =SUM(O5:O12) -> 51447000
B5: Eastern ^ | C5: 24638 | D5: 25165 | E5: 25367 | F5: 25651 | G5: 25995 | H5: 26429 | I5: 27216 | J5: 27754 | K5: 28063 | L5: 0 | M5: 29299 | N5: 105.8579119 | O5: 5729000
B6: North West | C6: 32642 | D6: 31623 | E6: 32592 | F6: 31863 | G6: 32595 | H6: 33221 | I6: 33700 | J6: 34492 | K6: 33858 | L6: 0 | M6: 35246 | N6: 103.6139147 | O6: 6589000
B7: Northern & Yorkshire | C7: 31538 | D7: 32516 | E7: 33169 | F7: 33598 | G7: 34172 | H7: 34056 | I7: 34858 | J7: 35509 | K7: 35959 | L7: 1959 | M7: 34176 | N7: 96.42796682 | O7: 6803000
B8: Oxford | C8: 11703 | D8: 11541 | E8: 11759 | F8: 11736 | G8: 11937 | H8: 12707 | I8: 12409 | J8: 12772 | K8: 12928 | L8: 0 | M8: 13515 | N8: 106.3921908 | O8: 2887000
B9: South & West | C9: 34355 | D9: 34317 | E9: 36135 | F9: 35568 | G9: 36524 | H9: 37871 | I9: 38737 | J9: 39515 | K9: 39278 | L9: 0 | M9: 38458 | N9: 98.16557475 | O9: 7070000
B10: Thames ^ | C10: 46487 | D10: 47399 | E10: 47078 | F10: 46542 | G10: 47289 | H10: 47754 | I10: 48710 | J10: 49335 | K10: 50017 | L10: 0 | M10: 50027 | N10: 101.3636179 | O10: 11938000
B11: Trent | C11: 22142 | D11: 22954 | E11: 22980 | F11: 22711 | G11: 23476 | H11: 24567 | I11: 25157 | J11: 25652 | K11: 26437 | L11: 0 | M11: 27367 | N11: 106.2851151 | O11: 5020000
B12: West Midlands | C12: 24521 | D12: 24299 | E12: 24413 | F12: 24970 | G12: 25438 | H12: 25989 | I12: 26100 | J12: 26917 | K12: 26808 | L12: 0 | M12: 27010 | N12: 101.5095521 | O12: 5411000
A13: Scotland | C13: 25818 | D13: 26151 | E13: 26124 | F13: 26689 | G13: 26991 | H13: 27669 | I13: 27222 | J13: 27667 | K13: 28299 | L13: 3240 | M13: 26461 | N13: 95.42602298 | O13: 5169000
A14: Wales | C14: 15336 | D14: 15504 | E14: 15747 | F14: 15902 | G14: 16311 | H14: 16884 | I14: 16701 | J14: 17314 | K14: 17465 | L14: 0 | M14: 17782 | N14: 103.6247086 | O14: 2993000
A15: Northern Ireland | C15: 6336 | D15: 6504 | E15: 6554 | F15: 6791 | G15: 7012 | H15: 7161 | I15: 7244 | J15: 7446 | K15: 8001 | L15: 0 | M15: 8043 | N15: 106.3373144 | O15: 1775000
A16: UK Total | C16: =SUM(C5:C15) -> 275516 | D16: 277973 | E16: 281918 | F16: 282021 | G16: 287740 | H16: 294308 | I16: 298054 | J16: 304373 | K16: 307113 | L16: 5199 | M16: 307384 | N16: =M16/((I16+J16+K16)/3)*100 -> 101.386635 | O16: =SUM(O5:O15) -> 61384000
M17: Target: | N17: 100%**
A18: * All invasive cases excluding non-melanoma skin cancer
A19: ** For the English and Welsh Registries, all cases diagnosed in a given calendar year should have been completed, entered onto the registry computer system and sent to ONS within 18 months of the end of the calendar year.
A20: Additionally, Wales will have a target of 100% completeness within 12 months of the end of the calendar year
A21: ***The percentage classified as being ONS Ready is compared to the average number of registrations in 2005-2007
A22: £ Initial covers cases where not all the basic information has been received or validity has not been confirmed. ONS ready is defined as "of a standard usable for analysis and in publications"
A23: subsequently cancel/amend on their own database but have not yet sent these changes through to ONS
A24: ^ Population defined using Lower Super Output Area populations for 2007 on UKACR website www.ukacr.org to the nearest thousand
A26: All subsequent tables report on the diagnosis year 2008 and Scotland report on the diagnosis year 2007 unless otherwise stated.
A28: Note: Even in cancer registries which rely on active notification of cases, cancer incidence figures do not reach stability for some years after the end of a given year because of a small but steady stream of late registrations, some
A29: of which first come to the attention of the registry through death certification

Sheet Tables1_2_3
A1: Standard Proforma for Reporting Registry Performance
C3: red text | D3: UK/England do not meet target
D4: Strange compared to UK/England
D5: Target/Expected value not met
A6: All xnmsc unless stated
A7: Table No. & Parameters | B7: Target /Expected Value | C7: UK Av | D7: England Average | E7: ECRIC | F7: NWCIS | G7: NYCRIS | H7: OCIU | I7: SWCIS | J7: Thames | K7: Trent | L7: WMCIU | M7: Scotland | N7: WCISU | O7: NICR
A8: Table 1 Registrations and timeliness
A9: % ONS ready | B9: 100% +2% | C9: 101.386635 | D9: 101.7433304 | E9: 105.9 | F9: 103.6 | G9: 96.4 | H9: 106.4 | I9: 98.2 | J9: 101.4 | K9: 106.3 | L9: 101.5 | M9: 95.4 | N9: 103.6 | O9: 106.3
A10: Table 2A % change in registrations - males
A11: Lung | B11: 95% CI | C11: =(SUM(E11:O11))/11 -> 1.136363636 | D11: =(SUM(E11:L11))/8 -> -0.025 | E11: 4.7 | F11: -0.5 | G11: -2.1 | H11: 0.8 | I11: 3.3 | J11: -3.5 | K11: 3.4 | L11: -6.3 | M11: 0.4 | N11: 3.8 | O11: 8.5
A12: Melanoma of skin | B12: 95% CI | C12: 18.29090909 | D12: 16.45 | E12: 34.1 | F12: 13.4 | G12: 9.1 | H12: 24.7 | I12: 2.9 | J12: 18.8 | K12: 10.4 | L12: 18.2 | M12: 10.1 | N12: 23 | O12: 36.5
A13: Colorectal | B13: 95% CI | C13: 5.5 | D13: 5.825 | E13: 5.6 | F13: 4.5 | G13: 3.8 | H13: 10.1 | I13: 4.6 | J13: 3.6 | K13: 10.5 | L13: 3.9 | M13: 5.6 | N13: 8.4 | O13: -0.1
A14: Prostate | B14: 95% CI | C14: 1.654545455 | D14: 0.1625 | E14: 7.2 | F14: -5.8 | G14: -1.3 | H14: 2.2 | I14: -5 | J14: 2.1 | K14: 1 | L14: 0.9 | M14: -0.2 | N14: 7.5 | O14: 9.6
A15: Bladder | B15: 95% CI | C15: -0.9 | D15: 2.1375 | E15: 9.5 | F15: 9.6 | G15: 0 | H15: 9.7 | I15: -1.1 | J15: -6.3 | K15: 7.2 | L15: -11.5 | M15: -1.3 | N15: -26.6 | O15: 0.9
A16: Haematology | B16: 95% CI | C16: 6.863636364 | D16: 8.7625 | E16: 8 | F16: 27.7 | G16: 11 | H16: 14.1 | I16: -6.3 | J16: -0.6 | K16: 13.8 | L16: 2.4 | M16: -4 | N16: -0.8 | O16: 10.2
A17: All xnmsc | B17: 95% CI | C17: 3.009090909 | D17: 2.575 | E17: 3.4 | F17: 3.2 | G17: 1 | H17: 7.2 | I17: -1.2 | J17: 1.1 | K17: 4.8 | L17: 1.1 | M17: 1.6 | N17: 3.8 | O17: 7.1
A18: Table 2B % change in registrations - females
A19: Lung | B19: 95% CI | C19: 4.590909091 | D19: 4.4375 | E19: 6.9 | F19: 2.8 | G19: 6.8 | H19: 3.4 | I19: 2.6 | J19: 0 | K19: 8.3 | L19: 4.7 | M19: 5.9 | N19: 11.3 | O19: -2.2
A20: Breast Invasive | B20: 95% CI | C20: 3.972727273 | D20: 3.2625 | E20: 5.3 | F20: 2.2 | G20: 6.1 | H20: 2.5 | I20: -3.6 | J20: 2.2 | K20: 8.9 | L20: 2.5 | M20: 1.5 | N20: 8.2 | O20: 7.9
A21: Breast In Situ | B21: 95% CI | C21: 10.27272727 | D21: 8.2625 | E21: 11.4 | F21: 4.1 | G21: 1.3 | H21: 3.6 | I21: 10 | J21: 7 | K21: 21.5 | L21: 7.2 | M21: 0.2 | N21: 23.9 | O21: 22.8
A22: Cervix Invasive | B22: 95% CI | C22: 3.836363636 | D22: 1.125 | E22: 10.4 | F22: -3 | G22: 2 | H22: -2.1 | I22: 1.2 | J22: -6.4 | K22: -12.5 | L22: 19.4 | M22: 0.3 | N22: 0 | O22: 32.9
A23: Cervix In Situ | B23: 95% CI | C23: 10.1 | D23: 10.7625 | E23: 33 | F23: -10.8 | G23: 19.4 | H23: 8.5 | I23: 12.9 | J23: 9.7 | K23: 5.4 | L23: 8 | M23: -23.3 | N23: 34.5 | O23: 13.8
A24: Melanoma of skin | B24: 95% CI | C24: 11.78181818 | D24: 9.6 | E24: 23.8 | F24: 6.7 | G24: 1.5 | H24: 10.5 | I24: 2.7 | J24: 7.9 | K24: 15.6 | L24: 8.1 | M24: 27.7 | N24: 10.9 | O24: 14.2
A25: Colorectal | B25: 95% CI | C25: 3.263636364 | D25: 2.3875 | E25: -0.5 | F25: 0.7 | G25: -3.2 | H25: 8.7 | I25: -0.6 | J25: 5.7 | K25: 9 | L25: -0.7 | M25: 5.2 | N25: 4.8 | O25: 6.8
A26: Bladder | B26: 95% CI | C26: -3.690909091 | D26: -0.2625 | E26: -9.9 | F26: 10.9 | G26: -6 | H26: -2.9 | I26: -5.5 | J26: -1.9 | K26: 6.6 | L26: 6.6 | M26: -7.5 | N26: -34.5 | O26: 3.5
A27: Haematology | B27: 95% CI | C27: 6.409090909 | D27: 9.425 | E27: 5.4 | F27: 30.3 | G27: 13.3 | H27: 13.2 | I27: -2.5 | J27: 1.6 | K27: 9 | L27: 5.1 | M27: 2.1 | N27: -9.2 | O27: 2.2
A28: All xnmsc | B28: 95% CI | C28: 3.627272727 | D28: 3.35 | E28: 2.3 | F28: 4 | G28: 6.1 | H28: 5.6 | I28: -2.5 | J28: 1.6 | K28: 7.8 | L28: 1.9 | M28: 4 | N28: 3.5 | O28: 5.6
A29: Table 2C Childhood cancer incidence rates
A30: Age 0-4
A31: M | B31: 19.9 | C31: 19.16363636 | D31: 18.275 | E31: 24.9 | F31: 14.1 | G31: 7.9 | H31: 22.1 | I31: 15.8 | J31: 23.2 | K31: 23.1 | L31: 15.1 | M31: 18.4 | N31: 18.5 | O31: 27.7
A32: F | B32: 18.2 | C32: 14.73636364 | D32: 13.95 | E32: 15 | F32: 8.8 | G32: 4.7 | H32: 15.4 | I32: 21.9 | J32: 15.9 | K32: 16.5 | L32: 13.4 | M32: 19.4 | N32: 20.8 | O32: 10.3
A33: Age 5-9
A34: M | B34: 11.6 | C34: 10.91818182 | D34: 10.7125 | E34: 8.4 | F34: 6.9 | G34: 10.7 | H34: 13.7 | I34: 9.4 | J34: 10.8 | K34: 13.8 | L34: 12 | M34: 10.7 | N34: 20.3 | O34: 3.4
A35: F | B35: 8.9 | C35: 10.46363636 | D35: 9.4125 | E35: 9.5 | F35: 9 | G35: 11.3 | H35: 10.8 | I35: 8.2 | J35: 9.7 | K35: 11.5 | L35: 5.3 | M35: 12 | N35: 15.1 | O35: 12.7
A36: Age 10-14
A37: M | B37: 11.4 | C37: 12.40909091 | D37: 12.725 | E37: 18.5 | F37: 10.7 | G37: 8.3 | H37: 8.6 | I37: 12.3 | J37: 17.4 | K37: 13.1 | L37: 12.9 | M37: 7.1 | N37: 18.1 | O37: 9.5
A38: F | B38: 10.1 | C38: 10.28181818 | D38: 10.65 | E38: 15.2 | F38: 11.3 | G38: 8.1 | H38: 5.7 | I38: 11.4 | J38: 10.9 | K38: 10.4 | L38: 12.2 | M38: 6.1 | N38: 16.8 | O38: 5
A39: Table 2D % death certificate only (males & females)
A40: Lung | B40: 4.9 | C40: 2.809090909 | D40: 3.125 | E40: 0 | F40: 11.3 | G40: 1.9 | H40: 1.3 | I40: 3 | J40: 3.1 | K40: 2 | L40: 2.4 | M40: 0.7 | N40: 4.5 | O40: 0.7
A41: Breast Invasive | B41: 1 | C41: 0.6545454545 | D41: 0.725 | E41: 0 | F41: 2.1 | G41: 0.4 | H41: 0.1 | I41: 0.7 | J41: 1 | K41: 0.9 | L41: 0.6 | M41: 0.4 | N41: 0.8 | O41: 0.2
A42: Cervix Invasive | B42: 0.8 | C42: 0.4545454545 | D42: 0.55 | E42: 0 | F42: 1.8 | G42: 0 | H42: 0 | I42: 0.3 | J42: 0.7 | K42: 1.6 | L42: 0 | M42: 0 | N42: 0.6 | O42: 0
A43: Melanoma of skin | B43: 0.4 | C43: 0.1181818182 | D43: 0.125 | E43: 0 | F43: 0.2 | G43: 0 | H43: 0 | I43: 0.1 | J43: 0.4 | K43: 0.3 | L43: 0 | M43: 0 | N43: 0.3 | O43: 0
A44: Colorectal | B44: 2.3 | C44: 1.336363636 | D44: 1.475 | E44: 0 | F44: 4.6 | G44: 0.9 | H44: 0.7 | I44: 2 | J44: 1.7 | K44: 1.1 | L44: 0.8 | M44: 0.5 | N44: 2.1 | O44: 0.3
A45: Prostate | B45: 1.7 | C45: 1.063636364 | D45: 1.1875 | E45: 0 | F45: 3.7 | G45: 0.5 | H45: 0.3 | I45: 1.4 | J45: 1 | K45: 1.4 | L45: 1.2 | M45: 0.4 | N45: 1.5 | O45: 0.3
A46: Bladder | B46: 1.9 | C46: 1.381818182 | D46: 1.6125 | E46: 0 | F46: 4.4 | G46: 0.7 | H46: 0.9 | I46: 1.2 | J46: 2.1 | K46: 2.5 | L46: 1.1 | M46: 0.1 | N46: 1.7 | O46: 0.5
A47: Haematology | B47: 3.3 | C47: 1.481818182 | D47: 1.7875 | E47: 0 | F47: 4.9 | G47: 1.1 | H47: 0.4 | I47: 1.5 | J47: 1.2 | K47: 2 | L47: 3.2 | M47: 0.3 | N47: 1.5 | O47: 0.2
A48: III-defined sites | B48: 11.4 | C48: 7.327272727 | D48: 7.8875 | E48: 0 | F48: 23.6 | G48: 3.3 | H48: 4.7 | I48: 11.2 | J48: 5.8 | K48: 5.2 | L48: 9.3 | M48: 3.8 | N48: 12.8 | O48: 0.9
A49: All xnmsc Male | B49: 2 | C49: 1.663636364 | D49: 1.8875 | E49: 0 | F49: 6.4 | G49: 1 | H49: 0.8 | I49: 1.7 | J49: 1.8 | K49: 1.6 | L49: 1.8 | M49: 0.6 | N49: 2.2 | O49: 0.4
A50: All xnmsc Female | B50: 2 | C50: 1.818181818 | D50: 2.0375 | E50: 0 | F50: 6.3 | G50: 1.1 | H50: 0.8 | I50: 2.2 | J50: 2.1 | K50: 1.8 | L50: 2 | M50: 0.6 | N50: 2.7 | O50: 0.4
A51: All xnmsc M<75 | B51: 1.5 | C51: 0.7727272727 | D51: 0.9125 | E51: 0 | F51: 3.3 | G51: 0.7 | H51: 0.2 | I51: 0.7 | J51: 1 | K51: 0.8 | L51: 0.6 | M51: 0.3 | N51: 0.8 | O51: 0.1
A52: All xnmsc M>=75 | B52: 5.4 | C52: 3.209090909 | D52: 3.5875 | E52: 0.2 | F52: 12 | G52: 1.7 | H52: 1.8 | I52: 3.2 | J52: 3.2 | K52: 3 | L52: 3.6 | M52: 1.1 | N52: 4.6 | O52: 0.9
A53: All xnmsc F<75 | B53: 1 | C53: 0.5636363636 | D53: 0.6375 | E53: 0 | F53: 2.3 | G53: 0.3 | H53: 0.3 | I53: 0.4 | J53: 0.7 | K53: 0.6 | L53: 0.5 | M53: 0.2 | N53: 0.8 | O53: 0.1
A54: All xnmsc F>=75 | B54: 6.5 | C54: 4.136363636 | D54: 4.6 | E54: 0 | F54: 13.7 | G54: 2.5 | H54: 1.9 | I54: 5.3 | J54: 4.6 | K54: 4.1 | L54: 4.7 | M54: 1.6 | N54: 6 | O54: 1.1
A55: Table 2E % death certificate only (males & females) for previous diagnosis year
A56: Lung | B56: 4.9 | C56: 3.290909091 | D56: 3.725 | E56: 0.1 | F56: 9.9 | G56: 2.4 | H56: 2.7 | I56: 2.6 | J56: 3.6 | K56: 1.7 | L56: 6.8 | M56: 1 | N56: 4.1 | O56: 1.3
A57: Breast Invasive | B57: 1 | C57: 0.6454545455 | D57: 0.75 | E57: 0 | F57: 1.9 | G57: 0.4 | H57: 0.2 | I57: 0.7 | J57: 1.1 | K57: 0.6 | L57: 1.1 | M57: 0.2 | N57: 0.7 | O57: 0.2
A58: Cervix Invasive | B58: 0.8 | C58: 0.3090909091 | D58: 0.3625 | E58: 0 | F58: 0.9 | G58: 0.2 | H58: 0 | I58: 0.6 | J58: 0.5 | K58: 0.7 | L58: 0 | M58: 0 | N58: 0.5 | O58: 0
A59: Melanoma of skin | B59: 0.4 | C59: 0.1727272727 | D59: 0.2 | E59: 0 | F59: 0.4 | G59: 0.2 | H59: 0 | I59: 0.2 | J59: 0.5 | K59: 0.2 | L59: 0.1 | M59: 0.1 | N59: 0.2 | O59: 0
A60: Colorectal | B60: 2.3 | C60: 1.563636364 | D60: 1.75 | E60: 0 | F60: 4 | G60: 1.5 | H60: 1.5 | I60: 1.1 | J60: 2.4 | K60: 0.9 | L60: 2.6 | M60: 0.7 | N60: 2.4 | O60: 0.1
A61: Prostate | B61: 1.7 | C61: 1.136363636 | D61: 1.4 | E61: 0 | F61: 3.4 | G61: 0.8 | H61: 0.4 | I61: 1 | J61: 1.3 | K61: 1.2 | L61: 3.1 | M61: 0.2 | N61: 0.9 | O61: 0.2
A62: Bladder | B62: 1.9 | C62: 1.236363636 | D62: 1.65 | E62: 0 | F62: 5.6 | G62: 0.9 | H62: 0.2 | I62: 1.8 | J62: 1.3 | K62: 0.9 | L62: 2.5 | M62: 0.1 | N62: 0.3 | O62: 0
A63: Haematology | B63: 3.3 | C63: 2.263636364 | D63: 2.875 | E63: 0 | F63: 10.2 | G63: 1 | H63: 0.5 | I63: 1.5 | J63: 1.7 | K63: 1.6 | L63: 6.5 | M63: 0.4 | N63: 1.3 | O63: 0.2
A64: III-defined sites | B64: 11.4 | C64: 9.8 | D64: 10.6875 | E64: 0.2 | F64: 24.9 | G64: 6.4 | H64: 8.5 | I64: 8.7 | J64: 7.8 | K64: 6.7 | L64: 22.3 | M64: 3.9 | N64: 11.7 | O64: 6.7
A65: All xnmsc Male | B65: 2 | C65: 1.981818182 | D65: 2.2875 | E65: 0 | F65: 6.3 | G65: 1.5 | H65: 1.1 | I65: 1.5 | J65: 2 | K65: 1.4 | L65: 4.5 | M65: 0.6 | N65: 2.2 | O65: 0.7
A66: All xnmsc Female | B66: 2 | C66: 2.145454545 | D66: 2.45 | E66: 0 | F66: 6 | G66: 1.6 | H66: 1.5 | I66: 1.8 | J66: 2.5 | K66: 1.5 | L66: 4.7 | M66: 0.8 | N66: 2.7 | O66: 0.5
A67: All xnmsc M<75 | B67: 1.5 | C67: 0.9 | D67: 1.0625 | E67: 0 | F67: 3.4 | G67: 0.7 | H67: 0.3 | I67: 0.5 | J67: 1.1 | K67: 0.6 | L67: 1.9 | M67: 0.3 | N67: 1 | O67: 0.1
A68: All xnmsc M>=75 | B68: 5.4 | C68: 3.8 | D68: 4.4625 | E68: 0.3 | F68: 11.5 | G68: 2.9 | H68: 2.7 | I68: 2.8 | J68: 3.7 | K68: 2.8 | L68: 9 | M68: 1.1 | N68: 4 | O68: 1
A69: All xnmsc F<75 | B69: 1 | C69: 0.6545454545 | D69: 0.7875 | E69: 0 | F69: 2.4 | G69: 0.5 | H69: 0.3 | I69: 0.4 | J69: 0.8 | K69: 0.5 | L69: 1.4 | M69: 0.3 | N69: 0.5 | O69: 0.1
A70: All xnmsc F>=75 | B70: 6.5 | C70: 4.890909091 | D70: 5.525 | E70: 0.3 | F70: 12.6 | G70: 3.4 | H70: 4.2 | I70: 4.2 | J70: 5.5 | K70: 3.3 | L70: 10.7 | M70: 1.7 | N70: 6.5 | O70: 1.4
A71: Table 2F % Zero survival (males & females)
A72: Lung | B72: 7.5 | C72: 4.990909091 | D72: 5.8125 | E72: 2.9 | F72: 12 | G72: 3.3 | H72: 6.2 | I72: 5.9 | J72: 5.7 | K72: 5.3 | L72: 5.2 | M72: 2 | N72: 5.2 | O72: 1.2
A73: Breast Invasive | B73: 1.3 | C73: 0.9181818182 | D73: 1.05 | E73: 0.2 | F73: 2.4 | G73: 0.5 | H73: 0.6 | I73: 1 | J73: 1.4 | K73: 1.5 | L73: 0.8 | M73: 0.5 | N73: 0.9 | O73: 0.3
A74: Cervix Invasive | B74: 1.1 | C74: =(SUM(E74:O74))/11 -> 0.7 | D74: =(SUM(E74:L74))/8 -> 0.8875 | E74: 0 | F74: 1.8 | G74: 0 | H74: 0 | I74: 0.9 | J74: 1 | K74: 2.4 | L74: 1 | M74: 0 | N74: 0.6 | O74: 0
A75: Melanoma of skin | B75: 0.5 | C75: 0.1818181818 | D75: 0.1875 | E75: 0 | F75: 0.4 | G75: 0 | H75: 0.2 | I75: 0.2 | J75: 0.4 | K75: 0.3 | L75: 0 | M75: 0 | N75: 0.5 | O75: 0
A76: Colorectal | B76: 3.4 | C76: 2.481818182 | D76: 2.875 | E76: 1.2 | F76: 5 | G76: 1.6 | H76: 4.4 | I76: 2.8 | J76: 3.1 | K76: 2.8 | L76: 2.1 | M76: 1 | N76: 2.7 | O76: 0.6
A77: Prostate | B77: 2.2 | C77: 1.527272727 | D77: 1.75 | E77: 0.2 | F77: 3.9 | G77: 0.6 | H77: 1.3 | I77: 2 | J77: 2 | K77: 2.3 | L77: 1.7 | M77: 0.8 | N77: 1.7 | O77: 0.3
A78: Bladder | B78: 2.7 | C78: 2.181818182 | D78: 2.5375 | E78: 1.1 | F78: 4.5 | G78: 1.1 | H78: 2.5 | I78: 1.8 | J78: 3.3 | K78: 3.6 | L78: 2.4 | M78: 0.8 | N78: 1.9 | O78: 1
A79: Haematology | B79: 4.5 | C79: 2.509090909 | D79: 2.9625 | E79: 1.4 | F79: 5.4 | G79: 2 | H79: 2 | I79: 2.7 | J79: 2.3 | K79: 3.5 | L79: 4.4 | M79: 0.9 | N79: 2.1 | O79: 0.9
A80: III-defined sites | B80: 15.1 | C80: 11.28181818 | D80: 12.725 | E80: 2.8 | F80: 25 | G80: 8.7 | H80: 17.5 | I80: 13.9 | J80: 9.5 | K80: 11.1 | L80: 13.3 | M80: 7 | N80: 13.5 | O80: 1.8
A81: All xnmsc Male | B81: 4.2 | C81: 2.836363636 | D81: 3.325 | E81: 1.4 | F81: 6.8 | G81: 2 | H81: 3.2 | I81: 3.2 | J81: 3.3 | K81: 3.5 | L81: 3.2 | M81: 1.3 | N81: 2.7 | O81: 0.6
A82: All xnmsc Female | B82: 4 | C82: 2.918181818 | D82: 3.3875 | E82: 1.4 | F82: 6.8 | G82: 1.9 | H82: 3.5 | I82: 3.4 | J82: 3.4 | K82: 3.5 | L82: 3.2 | M82: 1.3 | N82: 3 | O82: 0.7
A83: All xnmsc M<75 | B83: 2.3 | C83: 1.563636364 | D83: 1.8875 | E83: 1 | F83: 3.5 | G83: 1.3 | H83: 2.4 | I83: 1.5 | J83: 1.9 | K83: 1.9 | L83: 1.6 | M83: 0.8 | N83: 1 | O83: 0.3
A84: All xnmsc M>=75 | B84: 7.4 | C84: 5.090909091 | D84: 5.85 | E84: 2.5 | F84: 12.6 | G84: 3.5 | H84: 4 | I84: 5.8 | J84: 6 | K84: 6.3 | L84: 6.1 | M84: 2.4 | N84: 5.4 | O84: 1.4
A85: All xnmsc F<75 | B85: 1.5 | C85: 1.090909091 | D85: 1.275 | E85: 0.7 | F85: 2.6 | G85: 0.7 | H85: 1.5 | I85: 0.9 | J85: 1.3 | K85: 1.2 | L85: 1.3 | M85: 0.6 | N85: 0.9 | O85: 0.3
A86: All xnmsc F>=75 | B86: 8.7 | C86: 6.145454545 | D86: 7.0375 | E86: 2.9 | F86: 14.6 | G86: 4.3 | H86: 5.4 | I86: 7.6 | J86: 7.2 | K86: 7.6 | L86: 6.7 | M86: 2.9 | N86: 6.6 | O86: 1.8
A87: Table 2G % microscopically verified (males & females)
A88: Lung | B88: 69.1 | C88: 69.10909091 | D88: 68.3625 | E88: 69.4 | F88: 56.5 | G88: 66.3 | H88: 72.9 | I88: 69.4 | J88: 71.8 | K88: 68.8 | L88: 71.8 | M88: 71 | N88: 69.7 | O88: 72.6
A89: Breast Invasive | B89: 96.6 | C89: 97.06363636 | D89: 96.7875 | E89: 97.5 | F89: 94.4 | G89: 97.6 | H89: 96.8 | I89: 97 | J89: 96.6 | K89: 96.4 | L89: 98 | M89: 98.3 | N89: 96.3 | O89: 98.8
A90: Breast In Situ | B90: 100 | C90: 99.36363636 | D90: 99.125 | E90: 100 | F90: 98.1 | G90: 96.8 | H90: 99.6 | I90: 100 | J90: 99.3 | K90: 99.2 | L90: 100 | M90: 100 | N90: 100 | O90: 100
A91: Cervix Invasive | B91: 96.4 | C91: 96.47272727 | D91: 95.9375 | E91: 98 | F91: 90.2 | G91: 96.7 | H91: 94.5 | I91: 97.1 | J91: 97.5 | K91: 94.8 | L91: 98.7 | M91: 99 | N91: 94.7 | O91: 100
A92: Cervix In Situ | B92: 100 | C92: 99.89090909 | D92: 99.8625 | E92: 100 | F92: 99.7 | G92: 99.9 | H92: 99.5 | I92: 100 | J92: 100 | K92: 99.8 | L92: 100 | M92: 100 | N92: 99.9 | O92: 100
A93: Melanoma of skin | B93: 98 | C93: 97.93636364 | D93: 97.45 | E93: 99.5 | F93: 92.9 | G93: 96.8 | H93: 94.9 | I93: 99 | J93: 99.1 | K93: 97.5 | L93: 99.9 | M93: 100 | N93: 97.7 | O93: 100
A94: Colorectal | B94: 89.1 | C94: 89.31818182 | D94: 88.9625 | E94: 91.6 | F94: 85.2 | G94: 88.7 | H94: 88.6 | I94: 89.6 | J94: 90.7 | K94: 87.2 | L94: 90.1 | M94: 92.8 | N94: 88.9 | O94: 89.1
A95: Prostate | B95: 89.5 | C95: 89.10909091 | D95: 88.5875 | E95: 86.1 | F95: 87.9 | G95: 90.9 | H95: 91.5 | I95: 86.4 | J95: 90.5 | K95: 82.4 | L95: 93 | M95: 88.8 | N95: 90 | O95: 92.7
A96: Bladder | B96: 90.5 | C96: 89.4 | D96: 88.8125 | E96: 92.3 | F96: 84.9 | G96: 89.1 | H96: 84.8 | I96: 90.5 | J96: 91.2 | K96: 85.7 | L96: 92 | M96: 93.9 | N96: 88.2 | O96: 90.8
A97: Haematology | B97: 88.1 | C97: 86.60909091 | D97: 87.8 | E97: 94.9 | F97: 55.6 | G97: 91.5 | H97: 96.1 | I97: 92.1 | J97: 94.7 | K97: 91.5 | L97: 86 | M97: 94.8 | N97: 84.6 | O97: 70.9
A98: All xnmsc Male | B98: 83.5 | C98: 83.57272727 | D98: 83.4 | E98: 84.8 | F98: 75.2 | G98: 83.9 | H98: 85.8 | I98: 84.3 | J98: 86.3 | K98: 81.3 | L98: 85.6 | M98: 84.9 | N98: 83.6 | O98: 83.6
A99: All xnmsc Female | B99: 85.1 | C99: 85.53636364 | D99: 85.35 | E99: 87.2 | F99: 76.5 | G99: 89.1 | H99: 86.2 | I99: 86.1 | J99: 87.3 | K99: 84.3 | L99: 86.1 | M99: 86 | N99: 84.6 | O99: 87.5
A100: Table 2H % Non-specificity of morphology codes for cases which are microscopically verified
A101: Lung | B101: 8.2 | C101: 5.072727273 | D101: 3.7125 | E101: 1.2 | F101: 5.5 | G101: 2.2 | H101: 6.5 | I101: 0.4 | J101: 7.4 | K101: 3.3 | L101: 3.2 | M101: 3.4 | N101: 15.7 | O101: 7
A102: Breast Invasive | B102: 4 | C102: 3.227272727 | D102: 2.8375 | E102: 3.2 | F102: 3.7 | G102: 3.1 | H102: 4.2 | I102: 2.2 | J102: 3.3 | K102: 1.7 | L102: 1.3 | M102: 2.9 | N102: 2 | O102: 7.9
A103: Breast In Situ | B103: 2.8 | C103: 0.8 | D103: 0.7375 | E103: 0.2 | F103: 2.1 | G103: 0.5 | H103: 1.2 | I103: 1 | J103: 0.5 | K103: 0.4 | L103: 0 | M103: 2.9 | N103: 0 | O103: 0
A104: Cervix Invasive | B104: 2.6 | C104: 2.3 | D104: 2.4375 | E104: 1.4 | F104: 4.1 | G104: 1.8 | H104: 1.9 | I104: 2.1 | J104: 3.8 | K104: 2.1 | L104: 2.3 | M104: 1.7 | N104: 2.5 | O104: 1.6
A105: Cervix In Situ | B105: 0.2 | C105: 0.4181818182 | D105: 0.5625 | E105: 0 | F105: 4.4 | G105: 0 | H105: 0.1 | I105: 0 | J105: 0 | K105: 0 | L105: 0 | M105: 0 | N105: 0.1 | O105: 0
A106: Melanoma of skin | B106: 0 | C106: 0 | D106: 0 | E106: 0 | F106: 0 | G106: 0 | H106: 0 | I106: 0 | J106: 0 | K106: 0 | L106: 0 | M106: 0 | N106: 0 | O106: 0
A107: Colorectal | B107: 2.5 | C107: 2.3 | D107: 2.1375 | E107: 1.7 | F107: 4 | G107: 0.6 | H107: 3.8 | I107: 0.8 | J107: 3.5 | K107: 1.2 | L107: 1.5 | M107: 1 | N107: 6.3 | O107: 0.9
A108: Prostate | B108: 1.9 | C108: 1.645454545 | D108: 1.1375 | E108: 1.1 | F108: 3.2 | G108: 0.3 | H108: 1 | I108: 0 | J108: 1.9 | K108: 1.1 | L108: 0.5 | M108: 2.1 | N108: 6.7 | O108: 0.2
A109: Bladder | B109: 2.7 | C109: 3.154545455 | D109: 3.6625 | E109: 1.5 | F109: 15.9 | G109: 1 | H109: 3.8 | I109: 1.9 | J109: 3.2 | K109: 1 | L109: 1 | M109: 1.2 | N109: 3.7 | O109: 0.5
A110: Haematology | B110: 5.5 | C110: 4.2 | D110: 3.1 | E110: 3.1 | F110: 3.1 | G110: 0.5 | H110: 3.5 | I110: 3.8 | J110: 4.8 | K110: 4.6 | L110: 1.4 | M110: 1.9 | N110: 5.3 | O110: 14.2
A111: All xnmsc Male | B111: 4 | C111: 3.6 | D111: 3.1125 | E111: 3.9 | F111: 5.7 | G111: 0.8 | H111: 3.8 | I111: 2 | J111: 4 | K111: 2.6 | L111: 2.1 | M111: 1.3 | N111: 7.1 | O111: 6.3
A112: All xnmsc Female | B112: 4.7 | C112: 4.245454545 | D112: 3.625 | E112: 4.2 | F112: 5.9 | G112: 1.6 | H112: 5 | I112: 2.8 | J112: 4.6 | K112: 2.7 | L112: 2.2 | M112: 1.7 | N112: 6.7 | O112: 9.3
A113: Table 2I Mortality : Incidence ratios
A114: Lung | B114: 0.86 | C114: 0.8518181818 | D114: 0.84875 | E114: 0.83 | F114: 0.89 | G114: 0.86 | H114: 0.85 | I114: 0.82 | J114: 0.85 | K114: 0.8 | L114: 0.89 | M114: 0.83 | N114: 0.83 | O114: 0.92
A115: Breast Invasive | B115: 0.27 | C115: 0.2490909091 | D115: 0.2475 | E115: 0.26 | F115: 0.25 | G115: 0.25 | H115: 0.23 | I115: 0.25 | J115: 0.25 | K115: 0.25 | L115: 0.24 | M115: 0.25 | N115: 0.24 | O115: 0.27
A116: Cervix Invasive | B116: 0.35 | C116: 0.3145454545 | D116: 0.31125 | E116: 0.3 | F116: 0.39 | G116: 0.29 | H116: 0.22 | I116: 0.32 | J116: 0.35 | K116: 0.34 | L116: 0.28 | M116: 0.35 | N116: 0.4 | O116: 0.22
A117: Melanoma of skin | B117: 0.18 | C117: 0.1754545455 | D117: 0.17375 | E117: 0.17 | F117: 0.16 | G117: 0.19 | H117: 0.15 | I117: 0.17 | J117: 0.2 | K117: 0.16 | L117: 0.19 | M117: 0.16 | N117: 0.19 | O117: 0.19
A118: Colorectal | B118: 0.43 | C118: 0.4018181818 | D118: 0.4 | E118: 0.4 | F118: 0.41 | G118: 0.4 | H118: 0.38 | I118: 0.39 | J118: 0.41 | K118: 0.39 | L118: 0.42 | M118: 0.42 | N118: 0.4 | O118: 0.4
A119: Prostate | B119: 0.28 | C119: 0.27 | D119: 0.27375 | E119: 0.26 | F119: 0.29 | G119: 0.28 | H119: 0.24 | I119: 0.29 | J119: 0.27 | K119: 0.3 | L119: 0.26 | M119: 0.3 | N119: 0.22 | O119: 0.26
A120: Bladder | B120: 0.47 | C120: 0.4863636364 | D120: 0.47625 | E120: 0.46 | F120: 0.45 | G120: 0.47 | H120: 0.45 | I120: 0.5 | J120: 0.49 | K120: 0.46 | L120: 0.53 | M120: 0.62 | N120: 0.43 | O120: 0.49
A121: Haematology | B121: 0.49 | C121: 0.4418181818 | D121: 0.4375 | E121: 0.46 | F121: 0.4 | G121: 0.45 | H121: 0.39 | I121: 0.47 | J121: 0.43 | K121: 0.43 | L121: 0.47 | M121: 0.48 | N121: 0.45 | O121: 0.43
A122: All xnmsc Male | B122: 0.54 | C122: 0.5127272727 | D122: 0.51125 | E122: 0.51 | F122: 0.54 | G122: 0.53 | H122: 0.46 | I122: 0.5 | J122: 0.51 | K122: 0.52 | L122: 0.52 | M122: 0.57 | N122: 0.48 | O122: 0.5
A123: All xnmsc Female | B123: 0.5 | C123: 0.4754545455 | D123: 0.47375 | E123: 0.48 | F123: 0.5 | G123: 0.49 | H123: 0.43 | I123: 0.47 | J123: 0.47 | K123: 0.46 | L123: 0.49 | M123: 0.51 | N123: 0.47 | O123: 0.46
A124: Table 3A Completeness of the dataset - demographics and diagnostic details
A125: Patient's name | B125: 100 | C125: 100 | D125: 100 | E125: 100 | F125: 100 | G125: 100 | H125: 100 | I125: 100 | J125: 100 | K125: 100 | L125: 100 | M125: 100 | N125: 100 | O125: 100
A126: Patient's address | B126: 100 | C126: 99.81818182 | D126: 99.85 | E126: 100 | F126: 100 | G126: 100 | H126: 100 | I126: 100 | J126: 98.9 | K126: 100 | L126: 99.9 | M126: 100 | N126: 100 | O126: 99.2
A127: Sex | B127: 100 | C127: 100 | D127: 100 | E127: 100 | F127: 100 | G127: 100 | H127: 100 | I127: 100 | J127: 100 | K127: 100 | L127: 100 | M127: 100 | N127: 100 | O127: 100
A128: Ethnicity | B128: 46.2 | C128: 42.71818182 | D128: 54.15 | E128: 36.3 | F128: 0.3 | G128: 57.3 | H128: 61.1 | I128: 75.1 | J128: 41.7 | K128: 84.9 | L128: 76.5 | M128: 5.5 | N128: 31.2 | O128: 0
A129: Date of death (where dead) | B129: 100 | C129: 100 | D129: 100 | E129: 100 | F129: 100 | G129: 100 | H129: 100 | I129: 100 | J129: 100 | K129: 100 | L129: 100 | M129: 100 | N129: 100 | O129: 100
A130: Postcode | B130: 100 | C130: 99.83636364 | D130: 99.9875 | E130: 100 | F130: 100 | G130: 100 | H130: 100 | I130: 100 | J130: 100 | K130: 100 | L130: 99.9 | M130: 100 | N130: 100 | O130: 98.3
A131: Date of birth | B131: 100 | C131: 100 | D131: 100 | E131: 100 | F131: 100 | G131: 100 | H131: 100 | I131: 100 | J131: 100 | K131: 100 | L131: 100 | M131: 100 | N131: 100 | O131: 100
A132: Unique health identifier | B132: 99 | C132: 99.50909091 | D132: 99.7 | E132: 99.8 | F132: 99.5 | G132: 99.9 | H132: 99.7 | I132: 99.9 | J132: 99.1 | K132: 100 | L132: 99.7 | M132: 99.8 | N132: 99.9 | O132: 97.3
A133: Anniversary (diagnosis) date | B133: 100 | C133: 99.78181818 | D133: 99.7 | E133: 100 | F133: 100 | G133: 99.2 | H133: 100 | I133: 100 | J133: 98.6 | K133: 100 | L133: 99.8 | M133: 100 | N133: 100 | O133: 100
A134: Site of primary growth | B134: 96.2 | C134: 96.38181818 | D134: 96.525 | E134: 98.2 | F134: 95.6 | G134: 96.3 | H134: 96.1 | I134: 97 | J134: 96.4 | K134: 96.3 | L134: 96.3 | M134: 96.5 | N134: 96.8 | O134: 94.7
A135: Type of growth | B135: 88.1 | C135: 86.87272727 | D135: 87.425 | E135: 90.9 | F135: 83.4 | G135: 85.2 | H135: 86.7 | I135: 89.5 | J135: 89.5 | K135: 85.8 | L135: 88.4 | M135: 87.5 | N135: 87.2 | O135: 81.5
A136: Behaviour of growth | B136: 99.9 | C136: 99.41818182 | D136: 99.2 | E136: 100 | F136: 100 | G136: 96.5 | H136: 100 | I136: 100 | J136: 99.9 | K136: 100 | L136: 97.2 | M136: 100 | N136: 100 | O136: 100
A137: Basis of diagnosis | B137: 97.9 | C137: 98.85454545 | D137: 99.45 | E137: 99.6 | F137: 99.8 | G137: 99.8 | H137: 100 | I137: 100 | J137: 99.5 | K137: 97 | L137: 99.9 | M137: 99.5 | N137: 95.1 | O137: 97.2
A138: Table 3B Completeness of the dataset - treatment and screening information
A139: Therapeutic Surgery (% yes) | B139: 45.1 | C139: =(SUM(E139:O139))/11 -> 47.35454545 | D139: =(SUM(E139:L139))/8 -> 46.225 | E139: 56.3 | F139: 41.9 | G139: 45.3 | H139: 48.5 | I139: 50 | J139: 42.9 | K139: 39.3 | L139: 45.6 | M139: 43.9 | N139: 57.4 | O139: 49.8
A140: Radiotherapy (% yes) | B140: 17.4 | C140: 16.12727273 | D140: 16.15 | E140: 23.4 | F140: 12.8 | G140: 19.1 | H140: 19.6 | I140: 13.6 | J140: 15.6 | K140: 4.6 | L140: 20.5 | M140: 17.1 | N140: 11.8 | O140: 19.3
A141: Chemotherapy (% yes) | B141: 20 | C141: 23.55454545 | D141: 23.6 | E141: 29.4 | F141: 15.4 | G141: 24.7 | H141: 24.8 | I141: 22.7 | J141: 22.2 | K141: 25.6 | L141: 24 | M141: 26 | N141: 21.3 | O141: 23
A142: Breast cancer - Hormone (% yes) | B142: 28.1 | C142: 23.15454545 | D142: 25.925 | E142: 55.1 | F142: 1.7 | G142: 57.2 | H142: 8.5 | I142: 13.6 | J142: 35.5 | K142: 14.3 | L142: 21.5 | M142: 47.3 | N142: 0 | O142: 0
A143: Prostate cancer - Hormone (% yes) | B143: 29 | C143: 26.92727273 | D143: 32.2375 | E143: 61.3 | F143: 21.6 | G143: 47.2 | H143: 27.6 | I143: 35.1 | J143: 30.1 | K143: 12.8 | L143: 22.2 | M143: 38.3 | N143: 0 | O143: 0
A144: All xnmsc - any recorded treatment, ages 0-24 | C144: 85.62727273 | D144: 86.6875 | E144: 88.8 | F144: 71.1 | G144: 94.7 | H144: 87.5 | I144: 88.7 | J144: 89.7 | K144: 80.3 | L144: 92.7 | M144: 91.9 | N144: 89.8 | O144: 66.7
A145: All xnmsc - any recorded treatment, ages 25-64 | C145: 82.72727273 | D145: 83.6125 | E145: 90.5 | F145: 73 | G145: 93 | H145: 84.2 | I145: 84.2 | J145: 87 | K145: 72.8 | L145: 84.2 | M145: 83.5 | N145: 87.3 | O145: 70.3
A146: All xnmsc - any recorded treatment, ages 65+ | C146: 62.67272727 | D146: 62.9 | E146: 74 | F146: 50.2 | G146: 75.6 | H146: 61.9 | I146: 61.5 | J146: 75 | K146: 47.2 | L146: 57.8 | M146: 59.3 | N146: 62 | O146: 64.9
A147: Colorectal Cancer - any recorded treatment, ages 0-64 | C147: 89.66363636 | D147: 89.75 | E147: 94.7 | F147: 81.5 | G147: 94.3 | H147: 90.5 | I147: 89.7 | J147: 91.3 | K147: 84.2 | L147: 91.8 | M147: 92 | N147: 92 | O147: 84.3
A148: Colorectal Cancer - any recorded treatment, ages 65+ | C148: 76.90909091 | D148: 76.625 | E148: 82.1 | F148: 70.1 | G148: 83.6 | H148: 75.1 | I148: 77.3 | J148: 82.2 | K148: 65.9 | L148: 76.7 | M148: 79.6 | N148: 73.9 | O148: 79.5
A149: Female Breast Cancer - any recorded treatment, ages 0-64 | C149: 94.39090909 | D149: 94.9375 | E149: 98.1 | F149: 90.2 | G149: 99.3 | H149: 95.1 | I149: 95.3 | J149: 91 | K149: 93.4 | L149: 97.1 | M149: 98.4 | N149: 96.7 | O149: 83.7
A150: Female Breast Cancer - any recorded treatment, ages 65+ | C150: 82.01818182 | D150: 84 | E150: 94 | F150: 76.4 | G150: 96.2 | H150: 87.4 | I150: 84.8 | J150: 86.6 | K150: 68.8 | L150: 77.8 | M150: 89.7 | N150: 69.1 | O150: 71.4
A151: Prostate Cancer - any recorded treatment, ages 0-64 | C151: 68.79090909 | D151: 69.525 | E151: 86.7 | F151: 55.9 | G151: 98.3 | H151: 60.5 | I151: 56.7 | J151: 90.4 | K151: 44.5 | L151: 63.2 | M151: 66.2 | N151: 94.9 | O151: 39.4
A152: Prostate Cancer - any recorded treatment, ages 65+ | C152: 63.00909091 | D152: 64.35 | E152: 88.6 | F152: 44.5 | G152: 96.2 | H152: 56.9 | I152: 56.2 | J152: 86.3 | K152: 37.5 | L152: 48.6 | M152: 59.7 | N152: 78.2 | O152: 40.4
A154: Breast cancer - % screen detected for ages 50-67 | B154: 38 | C154: 49.32727273 | D154: 49.0875 | E154: 55.8 | F154: 52.2 | G154: 52.5 | H154: 53.3 | I154: 51.7 | J154: 23 | K154: 52.3 | L154: 51.9 | M154: 49 | N154: 53.3 | O154: 47.6
A155: Breast cancer - % with full screening category for ages 50-67 | B155: 55.4 | C155: 79.71818182 | D155: 79.0875 | E155: 92.1 | F155: 96.1 | G155: 98.5 | H155: 90 | I155: 56.1 | J155: 23 | K155: 76.9 | L155: 100 | M155: 99.6 | N155: 97 | O155: 47.6
A156: Cervical cancer - % screen detected for ages 25-67 | B156: 14 | C156: 20.88181818 | D156: 25.0375 | E156: 19.8 | F156: 42.2 | G156: 30.3 | H156: 32.3 | I156: 43.8 | J156: 0 | K156: 9.6 | L156: 22.3 | M156: 29.4 | N156: 0 | O156: 0
A157: Table 3C Completeness of the dataset - specific staging information including grade
A158: Stage - Breast cancer - % with known Bloom and Richardson grade | B158: >78% | C158: 87.50909091 | D158: 87.9875 | E158: 89.9 | F158: 85.1 | G158: 92.3 | H158: 88.3 | I158: 89.9 | J158: 81.1 | K158: 86.4 | L158: 90.9 | M158: 88.2 | N158: 87.3 | O158: 83.2
A159: Stage - Breast cancer - % with known number of positive nodes | B159: >65% | C159: 66.78181818 | D159: 63.625 | E159: 75.1 | F159: 65.3 | G159: 75.5 | H159: 72.6 | I159: 71.8 | J159: 68.3 | K159: 3.4 | L159: 77 | M159: 79.4 | N159: 66.5 | O159: 79.7
A160: Stage - Breast cancer - % with known invasive size | B160: >65% | C160: 71.26363636 | D160: 69.55 | E160: 88.2 | F160: 66.4 | G160: 86.7 | H160: 75.5 | I160: 74.9 | J160: 65.7 | K160: 26.8 | L160: 72.2 | M160: 78.9 | N160: 66.5 | O160: 82.1
A161: Stage - Breast cancer - % with known NPI score | B161: >65% | C161: 62.99090909 | D161: 59.5625 | E161: 72.3 | F161: 64 | G161: 73.3 | H161: 65.3 | I161: 67.6 | J161: 55.2 | K161: 3.1 | L161: 75.7 | M161: 73 | N161: 66.2 | O161: 77.2
A162: Stage - Colorectal cancer - % with known pathological Dukes stage | B162: >74% | C162: 69.32727273 | D162: 70.1875 | E162: 86.5 | F162: 63.6 | G162: 69.7 | H162: 57.7 | I162: 83.8 | J162: 54.5 | K162: 68 | L162: 77.7 | M162: 80.4 | N162: 63.7 | O162: 57
A163: Stage - Cervical cancer - % with complete FIGO stage | B163: >70% | C163: 77.73636364 | D163: 75.925 | E163: 88.9 | F163: 51.2 | G163: 90.7 | H163: 84.5 | I163: 89.4 | J163: 54.8 | K163: 69.8 | L163: 78.1 | M163: 73.6 | N163: 82.2 | O163: 91.9
A164: Stage - Melanoma of the skin cancer - % with known Breslow thickness | B164: >80% | C164: 79.6 | D164: 76.0875 | E164: 88.1 | F164: 80.6 | G164: 92.1 | H164: 91.4 | I164: 88.9 | J164: 71.3 | K164: 0.2 | L164: 96.1 | M164: 95.7 | N164: 76.2 | O164: 95
A165: Stage - Melanoma of the skin cancer - % with known Clark level | B165: >80% | C165: 65.93636364 | D165: 60.4625 | E165: 85.3 | F165: 70 | G165: 92.6 | H165: 53.4 | I165: 82.2 | J165: 6.4 | K165: 0 | L165: 93.8 | M165: 86.3 | N165: 59.3 | O165: 96

Sheet Table 4
A1: Table 4 Coding changes from 01/07/2009 to 30/06/2010 that have been implemented at UK cancer registries (Yes/No)
A3: Table No. & Parameters | B3: ECRIC | C3: NWCIS | D3: NYCRIS | E3: OCIU | F3: SWCIS | G3: Thames | H3: Trent | I3: WMCIU | J3: Scotland | K3: WCISU | L3: NICR
A4: Pr/09/01 Optic Nerve Glioma | B4: Yes | C4: Yes | D4: Yes | E4: Yes | F4: Yes | G4: Yes | H4: Yes | I4: Yes | J4: Yes | K4: No | L4: Yes
A5: Pr/09/02 Sarcomatoid Carcinoma | B5: Yes | C5: Yes | D5: Yes | E5: Yes | F5: Yes | G5: Yes | H5: Yes | I5: Yes | J5: Yes | K5: No | L5: Yes
A6: Pr/09/03 Melanocytic Tumour of Uncertain Malignant Potential (MELTUMP) | B6: Yes | C6: No | D6: Yes | E6: Yes | F6: Yes | G6: Yes | H6: Yes | I6: Yes | J6: Yes | K6: No | L6: Yes
A7: Pr/09/04 Pancreatic Intraepithelial Neoplasia (PanIN) | B7: Yes | C7: Yes | D7: Yes | E7: Yes | F7: Yes | G7: Yes | H7: Yes | I7: Yes | J7: Yes | K7: No | L7: Yes
A8: Pr/09/08 Primary Acquired Melanosis of Eye (PAM) | B8: Yes | C8: Yes | D8: Yes | E8: Yes | F8: Yes | G8: Yes | H8: Yes | I8: Yes | J8: Yes | K8: No | L8: Yes
A9: Pr/09/09 Differentiated VIN | B9: Yes | C9: Yes | D9: Yes | E9: Yes | F9: Yes | G9: Yes | H9: Yes | I9: Yes | J9: Yes | K9: No | L9: Yes
A10: Pr/09/10 Urine Cytology | B10: Yes | C10: Yes | D10: Yes | E10: Yes | F10: Yes | G10: Yes | H10: Yes | I10: Yes | J10: Yes | K10: No | L10: Yes
A11: Pr/09/11 Clear Cell Renal Cell Carcinoma Kidney | B11: Yes | C11: Yes | D11: Yes | E11: Yes | F11: Yes | G11: Yes | H11: Yes | I11: Yes | J11: Yes | K11: No | L11: Yes
A12: Pr/09/12 TCC diagnosed by TURP | B12: Yes | C12: Yes | D12: Yes | E12: Yes | F12: Yes | G12: Yes | H12: Yes | I12: Yes | J12: Yes | K12: Yes | L12: Yes
A13: Pr/09/13 TCC and Small Cell Carcinoma of Bladder | B13: Yes | C13: Yes | D13: Yes | E13: Yes | F13: Yes | G13: Yes | H13: Yes | I13: Yes | J13: Yes | K13: No | L13: Yes
A14: Pr/01/06 Tumours of the endometrium | B14: Yes | C14: Yes | D14: Yes | E14: Yes | F14: No | G14: Yes | H14: Yes | I14: Yes | J14: Yes | K14: No | L14: Yes
A15: Pr/10/01 T-Cell Granular Lymphocytic Leukaemia | B15: Yes | C15: Yes | D15: Yes | E15: Yes | F15: No | G15: Yes | H15: Yes | I15: Yes | J15: Yes | K15: No | L15: Yes
A16: Po/98/01 Microinvasive Cancer | B16: Yes | C16: Yes | D16: Yes | E16: Yes | F16: Yes | G16: Yes | H16: Yes | I16: Yes | J16: Yes | K16: No | L16: Yes
A17: Pr/08/03 Coding of Lobular Neoplasia | B17: Yes | C17: Yes | D17: Yes | E17: No | F17: Yes | G17: Yes | H17: Yes | I17: Yes | J17: Yes | K17: No | L17: Yes
A18: Pr/09/05 In Situ Skin Registrations | B18: Yes | C18: Yes | D18: Yes | E18: Yes | F18: No | G18: Yes | H18: Yes | I18: Yes | J18: Yes | K18: No | L18: Yes
A19: Pr/09/06 Figo Staging | B19: Yes | C19: Yes | D19: Yes | E19: Yes | F19: No | G19: Yes | H19: Yes | I19: Yes | J19: Yes | K19: Yes | L19: Yes
A20: Pr/09/07 Lung staging TNM7 | B20: Yes | C20: Yes | D20: No | E20: Yes | F20: No | G20: Yes | H20: Yes | I20: Yes | J20: Yes | K20: No | L20: Yes
A21: Po/00/04 Mixed Epithelial tumours of the Ovary | B21: Yes | C21: Yes | D21: Yes | E21: Yes | F21: No | G21: Yes | H21: Yes | I21: Yes | J21: Yes | K21: Yes | L21: Yes
A22: Pr/10/02 Early Stromal Invasion of Cervix (ESI) | B22: Yes | C22: Yes | D22: Yes | E22: Yes | F22: No | G22: Yes | H22: Yes | I22: Yes | J22: No | K22: No | L22: Yes
A23: Pr/10/03 Myelofibrosis | B23: Yes | C23: No | D23: Yes | E23: Yes | F23: No | G23: No | H23: Yes | I23: Yes | J23: No | K23: Yes | L23: Yes
A25: Coding changes highlighted in grey have been agreed this year but have an implementation date of 01/01/2010 and so can still be commented on whether a cancer registry has implemented the change
A26: The above coding changes relate to when the change was agreed in the period 01/07/2009 to 30/06/2010

Sheet Table 5
A1: TABLE 5: | C1: Trends in timeliness (as reported by registries)
A2: Proportion (%) of registrations completed (ONS Ready) within 18 months of year end (Target: 100%*)
A4: Registry | C4: 1997 | D4: 1998 | E4: 1999 | F4: 2000 | G4: 2001 | H4: 2002 | I4: 2003 | J4: 2004 | K4: 2005 | L4: 2006 | M4: 2007 | N4: 2008
C5: by 06/99 | D5: by 06/00 | E5: by 06/01 | F5: by 06/02 | G5: by 06/03 | H5: by 06/04 | I5: by 06/05 | J5: by 06/06 | K5: by 06/07 | L5: by 06/08 | M5: by 06/09 | N5: by 06/10
A6: England (average) | F6: 98 | G6: 96 | H6: 96.76464118 | I6: 99.11665632 | J6: 101.1848935 | K6: 101.020326 | L6: 100.2579687 | M6: 99.78616369 | N6: 101.7433304
A7: Scotland | C7: 73.50304431 | D7: 44.30475433 | E7: 30.04756668 | F7: 25.07479789 | G7: 30.18904621 | H7: 44.69773349 | I7: 71.60161681 | J7: 59.7356458 | K7: 54.3955635 | L7: 48.23379798 | M7: 66.62639133 | N7: 95.42602298
A8: Wales | C8: 103.1165265 | D8: 98.66914971 | E8: 103.6603221 | F8: 103.9161124 | G8: 101.1446691 | H8: 98.99601455 | I8: 104.6031335 | J8: 105.9888901 | K8: 101.8505644 | L8: 103.1327139 | M8: 103.4199807 | N8: 103.6247086
A9: Northern Ireland | F9: 0 | G9: 0 | H9: 102.552994 | I9: 103.7741592 | J9: 104.6294927 | K9: 99.98077755 | L9: 103.2837787 | M9: 107.0548609 | N9: 106.3373144
A10: UK average1 | C10: 80.19815296 | D10: 86.546234 | E10: 74.75341836 | F10: 90.56210103 | G10: 90 | H10: 92.19649564 | I10: 96.9623943 | J10: 97.67112622 | K10: 96.66247879 | L10: 95.66149769 | M10: 97.12358225 | N10: 101.386635
A12: * | B12: The target for completeness was originally 90%. This changed to 100% for the 2000 diagnosis data, reported in 2002.
A13: 1 | B13: GB average prior to 2002 published report
A14: Note: 1998 report published data were not included here because the definition of "ONS Ready" changed from 1999 onwards

Sheet Table 6
A1: TABLE 6: | C1: Trends in timeliness (as reported by ONS)
A2: Proportion (%) of registrations received by ONS within 18 months
A3: of year end (Target: 100%*)
A4: (as percentage of the previous 3 complete years held by ONS**)
A6: Registry | C6: 1999 | D6: 2000 | E6: 2001 | F6: 2002 | G6: 2003 | H6: 2004 | I6: 2005 | J6: 2006 | K6: 2007 | L6: 2008
C7: by 06/01 | D7: by 06/02 | E7: by 06/03 | F7: by 06/04 | G7: by 06/05 | H7: by 06/06 | I7: by 06/07 | J7: by 06/08 | K7: by 06/09 | L7: by 06/10
A8: England (average) | C8: 68.07785867 | D8: 64.19058456 | E8: 85.74858443 | F8: 95.7207699 | G8: 99.75093007 | H8: 101.3419628 | I8: 101.3419628 | J8: 101.1354375 | K8: 99.41474199 | L8: 102.3778395
B9: Eastern | C9: 120.8423944 | D9: 87.39685573 | E9: 84.8669137 | F9: 94.35276468 | G9: 102.0042181 | H9: 101.9874454 | I9: 105 | J9: 101.1689803 | K9: 102.8 | L9: 105.837031
B10: North West | C10: 59.98075791 | D10: 0 | E10: 39.72491258 | F10: 97.1072818 | G10: 100.2188708 | H10: 103.9566907 | I10: 105 | J10: 105.0121877 | K10: 98.45510489 | L10: 104.7497206
B11: Northern & Yorkshire | C11: 76.82583281 | D11: 73.24855491 | E11: 69.4729334 | F11: 98.08778114 | G11: 99.42073226 | H11: 98.59926105 | I11: 93 | J11: 95.77791479 | K11: 95.46333551 | L11: 98.5067869
B12: Oxford | C12: 110.0673134 | D12: 100.7007708 | E12: 100.3233339 | F12: 95.89455488 | G12: 99.76343513 | H12: 105.5568218 | I12: 98 | J12: 99.96209865 | K12: 98.52089882 | L12: 109.5390845
B13: South & West | C13: 1.269749657 | D13: 0 | E13: 78.70584375 | F13: 95.87951493 | G13: 101.4005661 | H13: 102.2959948 | I13: 101 | J13: 102.6259493 | K13: 97.55068421 | L13: 98.54770549
B14: Thames | C14: 0 | D14: 94.43227881 | E14: 92.6654232 | F14: 91.73447908 | G14: 97.01101184 | H14: 97.11968303 | I14: 98 | J14: 99.62008684 | K14: 100.3 | L14: 101.1323156
B15: Trent | C15: 105.8115706 | D15: 103.0566382 | E15: 102.413006 | F15: 95.38000983 | G15: 99.80989695 | H15: 108.0967069 | I15: 108.0967069 | J15: 104.0294539 | K15: 103.4062862 | L15: 105.9322253
B16: West Midlands | C16: 99.13604947 | D16: 85.01722891 | E16: 98.07531614 | F16: 101.0069853 | G16: 102.4855733 | H16: 101.5148282 | I16: 100 | J16: 100.8868282 | K16: 100.3044486 | L16: 101.9275833
A18: * | B18: The target for completeness was originally 90%. This changed to 100% for the 2000 diagnosis data, reported in 2002.
A19: ** | B19: The % complete data were supplied via the management reports supplied quarterly by ONS, without any intervention
A20: ** Note: The % used in this table DIFFERS from the one used in table 1.

Sheet Table 7
A1: TABLE 7: | C1: Trends in % Death Certificate Only
A3: % DCO: males (target: 2%)
A4: Registry | C4: Year report published 1
C5: 1998 | D5: 1999 | E5: 2000 | F5: 2001 | G5: 2002 | H5: 2003 | I5: 2004 | J5: 2005 | K5: 2006 | L5: 2007 | M5: 2008 | N5: 2009 | O5: 2010
A6: England (average) | G6: 4.5 | H6: 5.1 | I6: 4.755555556 | J6: 4.193548495 | K6: 3.62130609 | L6: 4.107373987 | M6: 3.6375 | N6: =(SUM(N7:N14))/8 -> 2.753353205 | O6: =(SUM(O7:O14))/8 -> 1.8462776
B7: Eastern 2 | C7: 0.07 | D7: 0.3 | E7: 0.2 | F7: 0.4 | G7: 0.3 | H7: 0.19 | I7: 0.5 | J7: 0.23 | K7: 0.07 | L7: 4.8 | M7: 1.3 | N7: 0.007 | O7: 0.007
B8: North West 3 | C8: 3.233001283 | D8: 1.015318893 | E8: 2.412524512 | F8: 3.329832065 | G8: 3.863253007 | H8: 6.216340563 | I8: 5.882929684 | J8: 4.826905372 | K8: 4.716464177 | L8: 5.156007 | M8: 4.8 | N8: 6.6 | O8: 6.374209
B9: Northern & Yorkshire4 | C9: 2.684120057 | D9: 5.25 | E9: 0.9 | F9: 1.4 | G9: 1.6 | H9: 1.4 | I9: 1.9 | J9: 1.6 | K9: 1.5 | L9: 2.1 | M9: 1.7 | N9: 1.93 | O9: 1.03
B10: Oxford | C10: 6.7 | D10: 1.4 | E10: 2.1 | F10: 1.1 | G10: 0.7 | H10: 1.6 | I10: 1.3 | J10: 1.2 | K10: 3.3 | L10: 2 | M10: 2.6 | N10: 1 | O10: 0.8
B11: South & West | C11: 6.082402675 | D11: 8 | E11: 9.154057772 | F11: 8.014877917 | G11: 10.6 | H11: 8.2 | I11: 7.6 | J11: 3.9 | K11: 3.3 | L11: 1.87 | M11: 1.3 | N11: 1.4156 | O11: 1.6975
B12: Thames 2 | C12: 21.01701396 | D12: 15.42236115 | E12: 16 | F12: 11.8 | G12: 7.1 | H12: 6.861841378 | I12: 4.8 | J12: 4.368755014 | K12: 4.677211566 | L12: 4.342486183 | M12: 3 | N12: 2.094499876 | O12: 1.778171139
B13: Trent 5 | D13: 9.03 | E13: 7.6 | F13: 7.686387686 | G13: 9.14770608 | H13: 9.3 | I13: 6.7 | J13: 5.994377437 | K13: 3.423003248 | L13: 2.589721045 | M13: 2.3 | N13: 2.074910367 | O13: 1.633340658
B14: West Midlands | C14: 10 | D14: 6.7 | E14: 6.2 | F14: 12.1 | G14: 5.5 | H14: 5.5 | I14: 9.2 | J14: 9.4 | K14: 6.3 | L14: 10.00077767 | M14: 12.1 | N14: 6.904815397 | O14: 1.45
A15: Scotland | C15: 2.4 | D15: 2.3 | E15: 0.93 | F15: 0.5219985086 | G15: 0.5244755245 | H15: 0.52 | I15: 0.5 | J15: 0.8577949162 | K15: 0.6700299543 | L15: 0.6570004531 | M15: 0.5 | N15: 0.5487896557 | O15: 0.5807115554
A16: Wales6 | D16: 10.2 | E16: 4.6 | F16: 3.15 | G16: 3.91 | H16: 6.865747831 | I16: 6.8 | J16: 5.220835334 | K16: 3.143507973 | L16: 3.2 | M16: 2.6 | N16: 2.1 | O16: 2.24220104
A17: Northern Ireland7 | G17: 1.5 | H17: 1.442150115 | I17: 1.56 | J17: 1.4 | K17: 1.4 | L17: 1.2 | M17: 0.9 | N17: 0.66 | O17: 0.38
A18: UK8 Average | C18: 6.674332431 | D18: 5.482696763 | E18: 4.450338148 | F18: 4.759705836 | G18: 4.0001643 | H18: 4.53820511 | I18: 4.305 | J18: 3.768380558 | K18: 3.150441062 | L18: 3.446908395 | M18: 3.009090909 | N18: =(SUM(N7:N17))/11 -> 2.303237754 | O18: =(SUM(O7:O17))/11 -> 1.633921217
A20: % DCO: females (target: 2%)
A21: Registry | C21: Year report published 1
C22: 1998 | D22: 1999 | E22: 2000 | F22: 2001 | G22: 2002 | H22: 2003 | I22: 2004 | J22: 2005 | K22: 2006 | L22: 2007 | M22: 2008 | N22: 2009 | O22: 2010
A23: England (average) | G23: 4.9 | H23: 5.2 | I23: 4.877777778 | J23: 4.339177974 | K23: 3.802617923 | L23: 3.891515296 | M23: 3.6125 | N23: =(SUM(N24:N31))/8 -> 2.78279734 | O23: =(SUM(O24:O31))/8 -> 2.015695297
B24: Eastern 2 | C24: 0.25 | D24: 0.2 | E24: 0.2 | F24: 0.5 | G24: 0.4 | H24: 0.38 | I24: 0.4 | J24: 0.093 | K24: 0.12 | L24: 5 | M24: 1 | N24: 0.04 | O24: 0
B25: North West 3 | C25: 3.725895044 | D25: 1.288660721 | E25: 2.711347919 | F25: 3.229575643 | G25: 4.144189409 | H25: 6.132283064 | I25: 5.336588537 | J25: 4.690376474 | K25: 4.482346578 | L25: 4.968281 | M25: 4.8 | N25: 6.2 | O25: 6.269521
B26: Northern & Yorkshire4 | C26: 2.703490696 | D26: 5.1 | E26: 1.25 | F26: 1.6 | G26: 2 | H26: 1.7 | I26: 1.8 | J26: 1.5 | K26: 1.3 | L26: 1.68 | M26: 1.6 | N26: 1.92 | O26: 1.06
B27: Oxford | C27: 7.2 | D27: 1.6 | E27: 2.3 | F27: 1 | G27: 1.3 | H27: 1.9 | I27: 1.5 | J27: 1.8 | K27: 3.9 | L27: 1.6 | M27: 2.6 | N27: 1.2 | O27: 0.8
B28: South & West | C28: 6.981410446 | D28: 9 | E28: 9.477645258 | F28: 8.59061173 | G28: 10.9 | H28: 8.5 | I28: 8.7 | J28: 5.5 | K28: 3.6 | L28: 2.22 | M28: 1.6 | N28: 1.8321 | O28: 2.2384
B29: Thames 2 | C29: 19.23597644 | D29: 15.71755543 | E29: 16.1 | F29: 11.8 | G29: 7.8 | H29: 7.578003543 | I29: 4.9 | J29: 4.478715538 | K29: 4.831656416 | L29: 3.904443874 | M29: 3 | N29: 2.585542071 | O29: 2.061978546
B30: Trent 5 | D30: 8.52 | E30: 7.2 | F30: 6.831888428 | G30: 8.348540146 | H30: 9 | I30: 7.2 | J30: 5.567986231 | K30: 3.70705989 | L30: 2.149570903 | M30: 2.2 | N30: 1.968871595 | O30: 1.815662826
B31: West Midlands | C31: 11 | D31: 7.6 | E31: 6.8 | F31: 11.6 | G31: 5.9 | H31: 5 | I31: 9.8 | J31: 9.4 | K31: 6.9 | L31: 9.60982659 | M31: 12.1 | N31: 6.515865051 | O31: 1.88
A32: Scotland | C32: 2.8 | D32: 2.7 | E32: 0.97 | F32: 0.3161141095 | G32: 0.3291688487 | H32: 0.7 | I32: 0.4 | J32: 0.7981326707 | K32: 0.7233947349 | L32: 0.7492507493 | M32: 0.8 | N32: 0.7662560871 | O32: 0.646478394
A33: Wales6 | D33: 8 | E33: 5.3 | F33: 3.65 | G33: 4.35 | H33: 7.582357746 | I33: 6.3 | J33: 6.006389776 | K33: 4.11196433 | L33: 4.1 | M33: 2.9 | N33: 2.5 | O33: 2.666666667
A34: Northern Ireland7 | G34: 2.5 | H34: 1.620029455 | I34: 1.29 | J34: 1.7 | K34: 2 | L34: 1.8 | M34: 1.3 | N34: 0.48 | O34: 0.37
A35: UK8 Average | C35: 6.883124388 | D35: 5.506462952 | E35: 4.708970438 | F35: 4.730511273 | G35: 4.29129575 | H35: 4.698479979 | I35: 4.324166667 | J35: 3.963093685 | K35: 3.421576697 | L35: 3.434670283 | M35: 3.081818182 | N35: =(SUM(N24:N34))/11 -> 2.364421346 | O35: =(SUM(O24:O34))/11 -> 1.800791585
A37: 1 | B37: Most, but not all, registries' analysis is of the diagnosis year two years prior to report publish year
A38: 2 | B38: Reports from 2007 reflect the boundary change between Eastern and Thames where Eastern includes Hertfordshire and Essex from 2007 onwards
A39: 3 | B39: For all reports, the figures for NWCIS were produced by multiplying the office area-specific estimates for the old MCCR (NWCIS: Liverpool) and NWCR (NWCIS: Manchester) registries by the proportions of ONS Ready cases reported for each area for each year
A40: 4 | B40: For 1998, 1999 and 2000 reports the separate estimates for Northern and Yorkshire registries have been averaged
A41: 5 | B41: In 1998 Trent submitted data for 1997 registrations, which was too soon after the calendar year was completed so the figures are not shown
A42: 6 | B42: Wales did not submit any data until the report published in 1999
A43: 7 | B43: Northern Ireland did not submit any data until the report published in 2002
A44: 8 | B44: GB average prior to 2002; England & Scotland average in 1998 report

Sheet Table 8
A1: TABLE 8: | C1: Trends in % Microscopically verified
A3: % Microscopically verified: males
A4: Registry | C4: Year report published 1
C5: 1998 | D5: 1999 | E5: 2000 | F5: 2001 | G5: 2002 | H5: 2003 | I5: 2004 | J5: 2005 | K5: 2006 | L5: 2007 | M5: 2008 | N5: 2009 | O5: 2010
A6: England (average) | G6: 79.4 | H6: 81.1 | I6: 80.95638767 | J6: 81.74410818 | K6: 82.69652453 | L6: 83.0803047 | M6: 84.325 | N6: =(SUM(N7:N14))/8 -> 84.92593161 | O6: =(SUM(O7:O14))/8 -> 83.40460693
B7: Eastern 2 | C7: 81.5 | D7: 82 | E7: 89.9 | F7: 82.2 | G7: 85.5 | H7: 85.7 | I7: 86.3 | J7: 86.9 | K7: 86.6 | L7: 82.5 | M7: 84.8 | N7: 85.3 | O7: 84.8
B8: North West 3 | C8: 77.98578336 | D8: 78.08066026 | E8: 76.91997627 | F8: 79.96418225 | G8: 78.5220462 | H8: 80.8459865 | I8: 77.42729117 | J8: 76.44384931 | K8: 77.53117 | L8: 76.40002 | M8: 77.7 | N8: 79.6 | O8: 75.24842
B9: Northern & Yorkshire4 | C9: =(70.01332741004+78.05)/2 -> 74.03166371 | D9: 75.6 | E9: =(79.1+82.2)/2 -> 80.65 | F9: 82.8 | G9: 84.3 | H9: 85.1 | I9: 84.8 | J9: 85.1 | K9: 85.3 | L9: 86.21 | M9: 86.9 | N9: 86.13 | O9: 83.91
B10: Oxford | C10: 82 | D10: 84.6 | E10: 86.1 | F10: 86 | G10: 88.5 | H10: 87.7 | I10: 87.5 | J10: 87.8 | K10: 86.3 | L10: 87.5 | M10: 86.8 | N10: 90.1 | O10: 85.8
B11: South & West | C11: 76.04786504 | D11: 77 | E11: 85.81536388 | F11: 81.19340032 | G11: 63.4 | H11: 72.2 | I11: 77.2 | J11: 82.5 | K11: 85.4 | L11: 84.31 | M11: 82.4 | N11: 84.663 | O11: 84.3
B12: Thames 2 | C12: 66.6 | D12: 69.1552777 | E12: 70.1 | F12: 73.3 | G12: 76 | H12: 77.9580399 | I12: 77.97315885 | J12: 79.91393771 | K12: 79.98139135 | L12: 81.78348978 | M12: 84.6 | N12: 85.22305599 | O12: 86.2976224
B13: Trent5,6 | E13: 70.4 | F13: 74.20875421 | G13: 75.80645161 | H13: 76.8 | I13: 77.7184102 | J13: 78.33499592 | K13: 81.48579995 | L13: 83.07089761 | M13: 83.6 | N13: 84.14066672 | O13: 81.30081301
B14: West Midlands | C14: 75 | D14: 76.9 | E14: 79.4 | F14: 78.9 | G14: 84.5 | H14: 84 | I14: 83.4 | J14: 82.3 | K14: 84.09690946 | L14: 82.86803017 | M14: 87.8 | N14: 84.25073017 | O14: 85.58
A15: Scotland | C15: 81.3 | D15: 80.7 | E15: 84.6 | F15: 84.25718784 | G15: 84.21805467 | H15: 83.9 | I15: 85.41857178 | J15: 84.62449656 | K15: 84.27400284 | L15: 84.89654131 | M15: 86 | N15: 84.73913697 | O15: 84.94560423
A16: Wales7 | D16: 43 | E16: 43 | F16: 44.11 | G16: 68.16 | H16: 67.89178152 | I16: 66.18205632 | J16: 72.02352376 | K16: 70.91116173 | L16: 77.2 | M16: 77 | N16: 80.1 | O16: 83.57885615
A17: Northern Ireland8 | G17: 76.1 | H17: 75.35234349 | I17: 78.9 | J17: 82 | K17: 77.6 | L17: 83.5 | M17: 81.1 | N17: 84.4 | O17: 83.6
A18: UK9 Average | C18: 77.07078651 | D18: 78.03684343 | E18: 76.90961366 | F18: 80.20020139 | G18: 78.78608966 | H18: 79.77605041 | I18: 79.92567643 | J18: 81.19541616 | K18: 81.42115711 | L18: 82.74899808 | M18: 83.51818182 | N18: =(SUM(N7:N17))/11 -> 84.42241726 | O18: =(SUM(O7:O17))/11 -> 83.57830144
A20: % Microscopically verified: females
A21: Registry | C21: Year report published 1
C22: 1998 | D22: 1999 | E22: 2000 | F22: 2001 | G22: 2002 | H22: 2003 | I22: 2004 | J22: 2005 | K22: 2006 | L22: 2007 | M22: 2008 | N22: 2009 | O22: 2010
A23: England (average) | G23: 80.3 | H23: 81.4 | I23: 81.68160784 | J23: 82.73304521 | K23: 83.62328358 | L23: 84.91966098 | M23: 85.775 | N23: =(SUM(N24:N31))/8 -> 86.38010518 | O23: =(SUM(O24:O31))/8 -> 85.34463497
B24: Eastern 2 | C24: 83.6 | D24: 84.1 | E24: 85.2 | F24: 85 | G24: 86.8 | H24: 85.4 | I24: 87.8 | J24: 88.2 | K24: 87.9 | L24: 83.5 | M24: 86.5 | N24: 86.2 | O24: 87.2
B25: North West 3 | C25: 78.06497104 | D25: 78.31159783 | E25: 77.48201054 | F25: 80.14325556 | G25: 79.13734722 | H25: 80.92812522 | I25: 77.98073869 | J25: 76.39674325 | K25: 77.82587 | L25: 77.66052 | M25: 77.9 | N25: 80 | O25: 76.5
B26: Northern & Yorkshire4 | C26: =(69.394565390116+80.18)/2 -> 74.7872827 | D26: 76.4 | E26: =(79.5+82.7)/2 -> 81.1 | F26: 83.2 | G26: 84.5 | H26: 84.8 | I26: 84.4 | J26: 85.1 | K26: 85.7 | L26: 89.85 | M26: 89.9 | N26: 90.17 | O26: 89.06
B27: Oxford | C27: 83 | D27: 84.9 | E27: 86.8 | F27: 87.6 | G27: 87.8 | H27: 87.3 | I27: 87.5 | J27: 89 | K27: 86.7 | L27: 88.6 | M27: 88.2 | N27: 89.7 | O27: 86.2
B28: South & West | C28: 76.38118844 | D28: 77 | E28: 84.87786211 | F28: 81.0675563 | G28: 65.9 | H28: 72.8 | I28: 78.2 | J28: 84.5 | K28: 87.4 | L28: 86.16 | M28: 84.6 | N28: 86.194 | O28: 86.1
B29: Thames 2 | C29: 69.2 | D29: 70.44716975 | E29: 71.3 | F29: 74.8 | G29: 76.2 | H29: 78.28916447 | I29: 79.53493498 | J29: 79.77888103 | K29: 81.45198564 | L29: 84.21525816 | M29: 85.3 | N29: 86.54056906 | O29: 87.26261422
B30: Trent5,6 | E30: 74 | F30: 77.30870712 | G30: 78.47824104 | H30: 78.7 | I30: 78.94885561 | J30: 81.17039587 | K30: 83.89488426 | L30: 84.5770331 | M30: 85.9 | N30: 86.17898833 | O30: 84.34446551
B31: West Midlands | C31: 76 | D31: 78.8 | E31: 80.3 | F31: 81.1 | G31: 85.5 | H31: 84.4 | I31: 83.5 | J31: 83.6 | K31: 84.35528232 | L31: 84.79447656 | M31: 87.9 | N31: 86.05728403 | O31: 86.09
A32: Scotland | C32: 82.4 | D32: 81.8 | E32: 85.9 | F32: 85.55898227 | G32: 85.29961846 | H32: 84.8 | I32: 86.44238987 | J32: 86.238878 | K32: 85.76329331 | L32: 85.8427287 | M32: 86.8 | N32: 86.26468061 | O32: 85.9816264
A33: Wales7 | D33: 43 | E33: 43 | F33: 58.61 | G33: 61.12 | H33: 64.83800708 | I33: 61.71854217 | J33: 66.41533546 | K33: 70.54743622 | L33: 77.8 | M33: 79.1 | N33: 80.7 | O33: 84.64327485
A34: Northern Ireland8 | G34: 81.9 | H34: 80.94256259 | I34: 82.9 | J34: 85 | K34: 82.6 | L34: 85.1 | M34: 82.7 | N34: 87.2 | O34: 87.5
A35: UK9 Average | C35: 77.95884347 | D35: 78.84883361 | E35: 77.25815518 | F35: 81.46868451 | G35: 79.28642412 | H35: 80.24978201 | I35: 80.51628355 | J35: 81.8543017 | K35: 82.62669014 | L35: 84.37272877 | M35: 84.98181818 | N35: =(SUM(N24:N34))/11 -> 85.92777473 | O35: =(SUM(O24:O34))/11 -> 85.53472554
A37: 1 | B37: Most, but not all, registries' analysis is of the diagnosis year two years prior to report publish year
A38: 2 | B38: Reports from 2007 reflect the boundary change between Eastern and Thames where Eastern includes Hertfordshire and Essex from 2007 onwards
A39: 3 | B39: For all reports, the figures for NWCIS were produced by multiplying the office area-specific estimates for the old MCCR (NWCIS: Liverpool) and NWCR (NWCIS: Manchester) registries by the proportions of ONS Ready cases reported for each area for each year
A40: 4 | B40: For 1998, 1999 and 2000 reports the separate estimates for Northern and Yorkshire registries have been averaged
A41: 5 | B41: In 1998 Trent submitted data for 1997 registrations, which was too soon after the calendar year was completed so the figures are not shown
A42: 6 | B42: Prior to the report published in 2000, Trent excluded DCOs from these calculations, artificially inflating the %MV reported - to avoid confusion, the figures for 1998 and 1999 have not been shown
A43: 7 | B43: Wales did not submit any data until the report published in 1999
A44: 8 | B44: Northern Ireland did not submit any data until the report published in 2002
A45: 9 | B45: GB average prior to 2002; England & Scotland average in 1998 report

Sheet Table 9
A1: TABLE 9: | C1: Trends in Mortality : Incidence ratios
A3: Mortality : Incidence ratio - males
A4: Registry | C4: Year report published 1
C5: 1998 | D5: 1999 | E5: 2000 | F5: 2001 | G5: 2002 | H5: 2003 | I5: 2004 | J5: 2005 | K5: 2006 | L5: 2007 | M5: 2008 | N5: 2009 | O5: 2010
A6: England (average)2 | G6: 0.59 | H6: 0.58 | I6: 0.5901572468 | J6: 0.5650457865 | K6: 0.5434444918 | L6: 0.5385278087 | M6: 0.53625 | N6: =(SUM(N7:N14))/8 -> 0.5284782557 | O6: =(SUM(O7:O14))/8 -> 0.5109728489
B7: Eastern 3,4 | C7: 0.68 | D7: 0.638 | E7: 0.659 | F7: 0.635 | G7: 0.6 | H7: 0.64 | I7: 0.6 | J7: 0.5 | K7: 0.54 | L7: 0.54 | M7: 0.54 | N7: 0.53 | O7: 0.51
B8: North West 5 | C8: 0.65781728 | D8: 0.6409627522 | E8: 0.6568121323 | F8: 0.6196188231 | G8: 0.6095111023 | H8: 0.5907147737 | I8: 0.6094039552 | J8: 0.566101738 | K8: 0.5328962135 | L8: 0.524194 | M8: 0.57 | N8: 0.58 | O8: 0.5372064
B9: Northern & Yorkshire6 | C9: 0.71003591 | D9: 0.713 | E9: 0.681 | F9: 0.643 | G9: 0.627 | H9: 0.581 | I9: 0.6 | J9: 0.58 | K9: 0.57 | L9: 0.57 | M9: 0.56 | N9: 0.55 | O9: 0.53
B10: Oxford | C10: 0.61 | D10: 0.58 | E10: 0.536 | F10: 0.552 | G10: 0.526 | H10: 0.536 | I10: 0.54 | J10: 0.53 | K10: 0.5 | L10: 0.51 | M10: 0.5 | N10: 0.47 | O10: 0.46
B11: South & West | C11: 0.6002902391 | D11: 0.6 | E11: 0.6301886792 | F11: 0.58 | G11: 0.569 | H11: 0.53 | I11: 0.53 | J11: 0.53 | K11: 0.5 | L11: 0.51 | M11: 0.5 | N11: 0.4916 | O11: 0.5
B12: Thames4 | C12: 0.6644236284 | D12: 0.6382305903 | E12: 0.631 | F12: 0.629 | G12: 0.6 | H12: n/a | I12: 0.6152273319 | J12: 0.6033841441 | K12: 0.5948325222 | L12: 0.561189578 | M12: 0.55 | N12: 0.5275830791 | O12: 0.5062960132
B13: Trent7 | D13: 0.69 | E13: 0.68 | F13: 0.6378066378 | G13: 0.6172851016 | H13: 0.611 | I13: 0.6304836895 | J13: 0.633082434 | K13: 0.5653368868 | L13: 0.5395252178 | M13: 0.53 | N13: 0.529178427 | O13: 0.5242803779
B14: West Midlands | C14: 0.6 | D14: 0.6 | E14: 0.615 | F14: 0.5629 | G14: 0.56 | H14: 0.59 | I14: 0.57 | J14: 0.569 | K14: 0.5448897173 | L14: 0.5533136738 | M14: 0.54 | N14: 0.5494645398 | O14: 0.52
A15: Scotland | C15: 0.637 | D15: 0.597 | E15: 0.621 | F15: 0.614301102 | G15: 0.5896376351 | H15: 0.615 | I15: 0.643278743 | J15: 0.6109926558 | K15: 0.5992432603 | L15: 0.576952122 | M15: 0.6 | N15: 0.5817922117 | O15: 0.5653484269
A16: Wales8 | D16: 0.621 | E16: 0.598 | F16: 0.6003 | G16: 0.5403 | H16: 0.5579377233 | I16: 0.5569089718 | J16: 0.5258041287 | K16: 0.5003416856 | L16: 0.5 | M16: 0.48 | N16: 0.49 | O16: 0.4842937608
A17: Northern Ireland9 | G17: 0.61 | H17: 0.5729269092 | I17: 0.57 | J17: 0.58 | K17: 0.54 | L17: 0.56 | M17: 0.52 | N17: 0.52 | O17: 0.5
A18: UK10 Average | C18: 0.6592889466 | D18: 0.6407858825 | E18: 0.6371573899 | F18: 0.6076295274 | G18: 0.5868310306 | H18: 0.5831849211 | I18: 0.590133578 | J18: 0.5668507385 | K18: 0.5442154477 | L18: 0.5404704174 | M18: 0.5354545455 | N18: =(SUM(N7:N17))/11 -> 0.5290562052 | O18: =(SUM(O7:O17))/11 -> 0.5124931799
A20: Mortality : Incidence ratio - females
A21: Registry | C21: Year report published 1
C22: 1998 | D22: 1999 | E22: 2000 | F22: 2001 | G22: 2002 | H22: 2003 | I22: 2004 | J22: 2005 | K22: 2006 | L22: 2007 | M22: 2008 | N22: 2009 | O22: 2010
A23: England (average)2 | G23: 0.54 | H23: 0.54 | I23: 0.5506110211 | J23: 0.5118122946 | K23: 0.5081539713 | L23: 0.5057964766 | M23: 0.49625 | N23: =(SUM(N24:N31))/8 -> 0.4955277794 | O23: =(SUM(O24:O31))/8 -> 0.4751496367
B24: Eastern 3,4 | C24: 0.59 | D24: 0.578 | E24: 0.577 | F24: 0.558 | G24: 0.55 | H24: 0.57 | I24: 0.52 | J24: 0.45 | K24: 0.49 | L24: 0.54 | M24: 0.5 | N24: 0.49 | O24: 0.48
B25: North West 5 | C25: 0.61654816 | D25: 0.6025857755 | E25: 0.5930587006 | F25: 0.5874615753 | G25: 0.5589930029 | H25: 0.5596507008 | I25: 0.5692257483 | J25: 0.5221368514 | K25: 0.519949858 | L25: 0.5067884 | M25: 0.54 | N25: 0.55 | O25: 0.50389
B26: Northern & Yorkshire6 | C26: 0.6590360718 | D26: 0.647 | E26: 0.609 | F26: 0.579 | G26: 0.557 | H26: 0.549 | I26: 0.57 | J26: 0.53 | K26: 0.53 | L26: 0.53 | M26: 0.53 | N26: 0.53 | O26: 0.49
B27: Oxford | C27: 0.53 | D27: 0.52 | E27: 0.547 | F27: 0.488 | G27: 0.506 | H27: 0.497 | I27: 0.5 | J27: 0.49 | K27: 0.46 | L27: 0.49 | M27: 0.46 | N27: 0.48 | O27: 0.43
B28: South & West | C28: 0.5479761531 | D28: 0.54 | E28: 0.5261177371 | F28: 0.51 | G28: 0.488 | H28: 0.47 | I28: 0.51 | J28: 0.49 | K28: 0.48 | L28: 0.46 | M28: 0.46 | N28: 0.4525 | O28: 0.47
B29: Thames4 | C29: 0.5990705844 | D29: 0.5788269053 | E29: 0.575 | F29: 0.5537930327 | G29: 0.58 | H29: n/a | I29: 0.5832047609 | J29: 0.555649449 | K29: 0.5506097344 | L29: 0.5207209521 | M29: 0.51 | N29: 0.4919430125 | O29: 0.4727453317
B30: Trent7 | D30: 0.62 | E30: 0.596 | F30: 0.5482472672 | G30: 0.5492199617 | H30: 0.574 | I30: 0.5870773288 | J30: 0.5242685026 | K30: 0.5007826015 | L30: 0.4947282387 | M30: 0.48 | N30: 0.4713618677 | O30: 0.4645617617
B31: West Midlands | C31: 0.57 | D31: 0.55 | E31: 0.537 | F31: 0.5244 | G31: 0.53 | H31: 0.55 | I31: 0.54 | J31: 0.52 | K31: 0.5105987055 | L31: 0.5041342217 | M31: 0.49 | N31: 0.4984173551 | O31: 0.49
A32: Scotland | C32: 0.584 | D32: 0.555 | E32: 0.558 | F32: 0.5615265998 | G32: 0.5452233111 | H32: 0.553 | I32: 0.5748582084 | J32: 0.5472025336 | K32: 0.5564173316 | L32: 0.524975025 | M32: 0.54 | N32: 0.5344457176 | O32: 0.5117386866
A33: Wales8 | D33: 0.56 | E33: 0.569 | F33: 0.5694 | G33: 0.5237 | H33: 0.5562210727 | I33: 0.5339185954 | J33: 0.5113099042 | K33: 0.493931137 | L33: 0.5 | M33: 0.49 | N33: 0.49 | O33: 0.4712280702
A34: Northern Ireland9 | G34: 0.52 | H34: 0.5251840943 | I34: 0.5 | J34: 0.53 | K34: 0.49 | L34: 0.52 | M34: 0.5 | N34: 0.48 | O34: 0.46
A35: UK10 Average | C35: 0.6026739815 | D35: 0.5846939088 | E35: 0.5741681448 | F35: 0.5512415857 | G35: 0.5414386612 | H35: 0.5423669061 | I35: 0.5470229995 | J35: 0.5162352574 | K35: 0.5094778508 | L35: 0.508304258 | M35: 0.5 | N35: =(SUM(N24:N34))/11 -> 0.4971516321 | O35: =(SUM(O24:O34))/11 -> 0.4767421682
A37: 1 | B37: Most, but not all, registries' analysis is of the diagnosis year two years prior to report publish year
A38: 2 | B38: Thames did not receive any mortality data in 2001 and so were excluded from the england average for 2001 registrations in the 2003 report
A39: 3 | B39: Reports from 2007 reflect the boundary change between Eastern and Thames where Eastern includes Hertfordshire and Essex from 2007 onwards
A40: 4 | B40: Thames did not receive any mortality data in 2001 and so an average cannot be obtained for the new combined area of Eastern or figures presented for Thames
A41: 5 | B41: For all reports, the figures for NWCIS were produced by multiplying the office area-specific estimates for the old MCCR (NWCIS: Liverpool) and NWCR (NWCIS: Manchester) registries by the proportions of ONS Ready cases reported for each area for each year
A42: 6 | B42: For 1998, 1999 and 2000 reports the separate estimates for Northern and Yorkshire registries have been averaged
A43: 7 | B43: In 1998 Trent submitted data for 1997 registrations, which was too soon after the calendar year was completed so the figures are not shown
A44: 8 | B44: Wales did not submit any data until the report published in 1999
A45: 9 | B45: Northern Ireland did not submit any data until the report published in 2002
A46: 10 | B46: GB average prior to 2002; England & Scotland average in 1998 report

Sheet Table 10a
A1: TABLE 10A: | C1: Trends in completeness of the dataset - demographics and diagnostic details
A3: Completeness of the dataset (UK Average1)
A4: This table shows the % of cases with a Valid Known code on the database
B6: Dataset variable | C6: Year report published 2
C7: 1998 | D7: 1999 | E7: 2000 | F7: 2001 | G7: 2002 | H7: 2003 | I7: 2004 | J7: 2005 | K7: 2006 | L7: 2007 | M7: 2008 | N7: 2009 | O7: 2010
B8: Patient's name | C8: 99.998 | D8: 99.98833333 | E8: 99.99833333 | F8: 99.99884851 | G8: 99.94545455 | H8: 99.93506285 | I8: 99.98232932 | J8: 100 | K8: 99.99825492 | L8: 99.99833237 | M8: 99.99692886 | N8: 100 | O8: 100
B9: Patient's address | C9: 99.37777778 | D9: 99.77363636 | E9: 99.96262754 | F9: 99.71201689 | G9: 99.6307066 | H9: 96.33162142 | I9: 99.70182076 | J9: 99.78303477 | K9: 99.84702567 | L9: 99.80830616 | M9: 99.91510126 | N9: 99.88987793 | O9: 99.80969249
B10: Post code | C10: 99.54250838 | D10: 99.15044547 | E10: 99.69166667 | F10: 99.38571563 | G10: 99.48082182 | H10: 99.5 | I10: 99.56618341 | J10: 98.86538141 | K10: 99.79162334 | L10: 99.66034217 | M10: 99.79071656 | N10: 99.87605036 | O10: 99.82981926
B11: Sex | C11: 99.98869996 | D11: 99.99166667 | E11: 100 | F11: 99.9995152 | G11: 99.99869124 | H11: 99.99725787 | I11: 100 | J11: 99.99166667 | K11: 99.99808436 | L11: 99.99784829 | M11: 99.98181818 | N11: 99.99454545 | O11: 100
B12: Date of birth | C12: 99.60858881 | D12: 99.9731394 | E12: 99.95153533 | F12: 99.97381904 | G12: 99.99090909 | H12: 99.99324333 | I12: 100 | J12: 100 | K12: 99.99166667 | L12: 100 | M12: 100 | N12: 100 | O12: 100
B13: Unique Health Identifier 3 | C13: 30.6244446 | D13: 42.01084214 | E13: 56.04579041 | F13: 71.1550296 | G13: 76.11305797 | H13: 70.32488076 | I13: 88.6990624 | J13: 92.47821215 | K13: 94.18770686 | L13: 95.42138793 | M13: 96.75191216 | N13: 99.01412755 | O13: 99.51068192
B14: NHS number (England Only) | G14: 79.70562641 | H14: 82.6485967 | I14: 95.93806268 | J14: 98.6118494 | K14: 98.4149709 | L14: 99.12784688 | M14: 98.9875 | N14: 99.55203834 | O14: 99.69424452
B15: Ethnicity | K15: 27.54299753 | L15: 38.43948913 | M15: 50.22102618 | N15: 50.02899368 | O15: 42.72199766
B16: Anniversary (diagnosis) date | C16: 99.3677117 | D16: 99.39632679 | E16: 99.41291477 | F16: 99.78181818 | G16: 99.73636364 | H16: 99.75833333 | I16: 99.81666667 | J16: 99.825 | K16: 99.775 | L16: 99.71362413 | M16: 99.71329702 | N16: 99.64443126 | O16: 99.78159875
B17: Site of primary growth | C17: 97.38815733 | D17: 93.88629054 | E17: 94.37300411 | F17: 94.48917807 | G17: 94.69870426 | H17: 94.43153248 | I17: 95.0933699 | J17: 95.00365301 | K17: 95.60422727 | L17: 96.13154542 | M17: 96.19910881 | N17: 96.38714921 | O17: 96.37316187
B18: Date of death (where dead) | C18: 99.97160494 | D18: 99.93544348 | E18: 99.94554474 | F18: 99.8613748 | G18: 99.97454545 | H18: 99.96206872 | I18: 99.96961296 | J18: 99.98118951 | K18: 99.98807032 | L18: 99.97097452 | M18: 99.99204645 | N18: 100 | O18: 100
B19: Type of growth | C19: 85.13894391 | D19: 79.6786239 | E19: 82.14847611 | F19: 82.08411562 | G19: 82.95493503 | H19: 83.95425861 | I19: 84.56409417 | J19: 86.75582174 | K19: 87.73691353 | L19: 88.55581039 | M19: 87.42388612 | N19: 88.42212598 | O19: 86.86478681
B20: Behaviour of growth | C20: 94.95612902 | D20: 99.06270318 | E20: 98.49754251 | F20: 99.66101637 | G20: 99.61833447 | H20: 97.7667515 | I20: 98.38880738 | J20: 99.04410061 | K20: 99.66379308 | L20: 99.93234799 | M20: 99.93074883 | N20: 99.83318127 | O20: 99.41174025
B21: Basis of diagnosis | C21: 91.60776675 | D21: 94.00580347 | E21: 94.48376585 | F21: 94.94439299 | G21: 93.13211263 | H21: 94.05470984 | I21: 94.35458268 | J21: 95.84807606 | K21: 96.49013615 | L21: 97.46631275 | M21: 97.74310981 | N21: 98.61118168 | O21: 98.84642325
A23: 1 | B23: UK average for 2003; GB average prior to 2003; England & Scotland average in 1998 report
A24: 2 | B24: For most, but not all registries, the analysis is of the diagnosis year two years prior to report publish year
A25: 3 | B25: NHS Number for England and Wales; CHI for Scotland and Health and Social Care Number for Northern Ireland

Sheet Table 10b
A1: TABLE 10B: | C1: Trends in completeness of the dataset - treatment and prognostic tumour details
A3: Completeness of the dataset (UK Average1)
A4: This table shows the % of cases with a Valid Known code on the database
B6: Dataset variable | C6: Year report published 2
C7: 1998 | D7: 1999 | E7: 2000 | F7: 2001 | G7: 2002 | H7: 2003 | I7: 2004 | J7: 2005 | K7: 2006 | L7: 2007 | M7: 2008 | N7: 2009 | O7: 2010
B8: Treatment codes (% yes) 3
B9: All xnmsc - Therapeutic surgery | D9: 50.9274429 | E9: 48.2549809 | F9: 42.40223432 | G9: 46.07264324 | H9: 49.34952302 | I9: 45.21076804 | J9: 44.95838625 | K9: 43.20826032 | L9: 43.97178036 | M9: 45.60909091 | N9: 45.72319468 | O9: 47.33871255
B10: All xnmsc - Radiotherapy 4 | D10: 22.41650817 | E10: 22.66756412 | F10: 22.04115373 | G10: 18.91249927 | H10: 14.89183472 | I10: 16.79553729 | J10: 18.29883707 | K10: 18.13192647 | L10: 17.94013642 | M10: 17.76 | N10: 16.39464238 | O10: 16.13629626
B11: All xnmsc - Chemotherapy | D11: 11.41190984 | E11: 15.50911928 | F11: 15.877274 | G11: 16.61497011 | H11: 14.78670151 | I11: 15.8297061 | J11: 16.89726664 | K11: 18.83088094 | L11: 19.35856254 | M11: 19.50909091 | N11: 21.12077164 | O11: 23.53970731
B13: Grade - Breast cancer only 5 | C13: 49.12443016 | D13: 62.47250848 | E13: 65.49005027 | F13: 72.3938216 | G13: 73.05313531 | H13: 73.94159762 | I13: 76.43235668 | J13: 78.85456919 | K13: 78.45296812 | L13: 76.39333097 | M13: 83.01308218 | N13: 86.25310998 | O13: 87.51540397
A15: 1 | B15: UK average for 2003; GB average prior to 2003; England & Scotland average in 1998 report
A16: 2 | B16: For most, but not all registries, the analysis is of the diagnosis year two years prior to report publish year
A17: 3 | B17: The definition of treatment was changed between the 1998 and 1999 report so the data for 1998 report is not shown. Hormone treatment has not been shown as the definition was changed again in the 2007 report
A18: 4 | B18: Wales received radiotherapy data from 2009 and so the UK average pre 2009 excludes Wales for radiotherapy
A19: 5 | B19: Only grade for breast cancer has been shown, and the staging information been removed from the table since the definitions for which staging data should be collected/presented have changed in the 2007 report
